Workbook

Sheet Cover Page
D1: Add company logo
N2: Version 20.6
B8: Add photo
N13: Notes:
N14: This template may require adjustments by individual operators to meet specific reporting requirements as defined in the site Permit(s)
B29: Annual Performance Report 2022
B31: Permit EPR/NP3739PD
B33: The Coventry And Solihull Waste Disposal Company Ltd
B35: CSWDC
B37: CSWDC
B39: Year: | C39: 2021
B41: Address: | C41: Bar Road, Coventry, CV3 4AN
B43: Tel: | C43: (0)2476507400
B45: Email: | C45: info@cswdc.co.uk
B47: Prepared by: | C47: M Schilling | F47: Position: | G47: EH&S Advisor
B49: Approved by: | C49: E Price | F49: Position: | G49: CP Manager
B51: Version: | C51: 1
B53: Issue Date: | C53: 2022-01-31

Sheet Contents
A1: =+'Cover Page'!$B$29 -> Annual Performance Report 2022 | E1: =+'Cover Page'!$B$33 -> The Coventry And Solihull Waste Disposal Company Ltd
A3: Contents | K3: Notes:
A4: Section | B4: Subject | H4: Page | K4: Section references and Page nos. to be inserted
B5: Facility Information | K5: Sections and Subjects may require adjustment by individual operators to meet specific reporting requirements as defined in the sites Permit(s)
B6: Operational Summary
B7: Operational Data
B8: Performance Form 1
B9: Energy Form 1
B10: Permit Compliance
B11: Improvements
B12: Public Liasion
B13: Residue Quality - Optional
B14: Emissions to Water
B15: Emissions to Air (periodically monitored)
B16: Emissions to Air (continuously monitored)
B17: Hydrogen Chloride emissions
B18: Sulphur Dioxdie emsissions
B19: Oxides of Notrigen emissions
B20: Total Organic Carbon emissions
B21: Particulate Matter emissions
B22: Carbon Monoxide emissions
B23: Ammonia emissions
A26: Version Control
A27: Section | B27: Information | H27: Date
B28: M Schilling - Data entry and compilation of report for submission to EA | H28: 2022-01-31
B29: Annual Performance Report 2022
A34: Distribution
A35: Copy | B35: Name, Role | H35: No.
A44: This report is required under the Industrial Emissions Directive’s Article 55(2) requirements on reporting and public information on waste incineration plants and co-incineration plants, which require the operator to produce an annual report on the functioning and monitoring of the plant and make it available to the public.
C53: 2022-01-31

Sheet Facility Info
A1: =+'Cover Page'!$B$29 -> Annual Performance Report 2022 | E1: =+'Cover Page'!$B$33 -> The Coventry And Solihull Waste Disposal Company Ltd
A3: Plant Description and Design | K3: Notes:
A5: The Waste to Energy plant, which is located at Bar Road in Coventry, processes Municipal Household waste arising in the City of Coventry and the neighbouring borough of Solihull. Municipal household waste from other nearby local authorities is also processed at the plant. The plant is operated by The Coventry and Solihull Waste Disposal Company Ltd. The main activity at the installation is thermal treatment of municipal waste and recovery of energy, in the form of heat which is converted to electricity for export to the grid. The installation also has the capability to export heat in the form of either High or Low Pressure steam to a district heating scheme operated by Engie UK. A limited amount of hazardous waste, containing less than 1% halogenated organic substances (as chlorine), is also burned with the municipal waste. The installation includes waste receipt and storage, steam generation boilers, abatement of the exhaust gas, on-site storage of residues and all systems for controlling and monitoring combustion operation. The steam produced is used to drive 2 steam turbine driven generators. The plant design is capable of processing approximately 315,000 tonnes of waste per annum/36 tonnes per hour in three combustion units (12 tonne per unit). The heat produced is used to generate 17.7MW of electricity and up to 16MW heat energy. Refuse collection vehicles enter the reception hall and deposit their waste into a storage bunker. The material is then loaded by crane into each of the combustion units via feed hoppers from the storage bunker. After entering the combustion chamber via the refuse feed ram the material is allowed to fall onto the grate in a controlled manner. The moving grate mechanisms are used to agitate the waste as it progresses down to the ash discharge. As the waste moves along, pre-heated primary air is introduced from beneath the grate enabling the waste to go through a series of drying and burning areas. Secondary air is introduced from above the grate for combustion control. Auxiliary gas fired burners are located in the combustion chamber both to heat it up on start-up and to maintain the final gas temperature if necessary. The hot gases are maintained at a minimum temperature of 850C for 2 seconds in the combustion chamber before passing to the boiler, economiser and abatement plant. Each combustion unit is equipped with a 3-bank water tube boiler, raising steam at 17 bar and 208C. Economisers are fitted downstream of each combustion unit to pre-heat the incoming feed water. Combustion is controlled with the use of an infrared imaging computer system, which uses fuzzy logic systems to control various parameters of the plant, ensuring improved efficiency and emission performance when compared to fully manual control. Each combustion unit is provided with its own gas cleaning and monitoring equipment. Gas cleaning comprises activated carbon injection, then dry scrubbing with hydrated lime. The gases pass through bag filters to remove particulates prior to discharge to atmosphere via a single 92m stack. NOx control is achieved by Selective Non Catalytic Reduction (SNCR) using ammonium hydroxide injection. Emissions from the stack are continuously monitored for particulates, carbon monoxide (CO), sulphur dioxide (SO2), hydrogen chloride (HCl), oxygen (O2), nitrogen oxides (NOx) and volatile organic compounds (VOC). There is no discharge of process liquids to controlled waters. Uncontaminated surface and roof waters are discharged to the surface water drainage system, via penstock equipped interceptors. All process waste waters are discharged to foul sewer and these are treated at Finham Sewage Treatment Works, which is operated by Severn Trent Water. Bottom ash from the combustion unit grate is quenched with water. The ferrous fraction from the bottom ash is then removed by magnetic separation. Both fractions are then conveyed to individual concrete storage bunkers prior to removal for reprocessing into aggregates or for recycling back into the steel industry. Air Pollution Control Residues (APCR) from the bag filters are collected continuously and stored in an enclosed silo prior to removal from site for disposal. | K5: Include summary of plant design, design capacity, no. of combustion lines, electrical and heat capacity and any other general information that descibes the facility, its location and purpose
A20: Summary of Operational Processes and Procedures
A22: The plant consists of three separate combustion units that process up to a maximum of 12 tonnes of waste per hour. There are two steam turbine driven electrical generating sets on the plant which convert the heat energy recovered from the combustion process into electricity. The generating sets are designated as G1 and G2. G1 has a capacity of 12.9MW and G2 a capacity of 4.8 MW. The process energy requirements are taken from the electricity generated and the surplus is exported to the grid. The plant also has the capacity to export heat, in the form of high pressure and low pressure steam. The following table categorises the types and permitted maximum amounts of wastes processed. EWC Code Description Amount 19 12 01 paper and cardboard (confidential waste separately collected)  13% 03 01 04 sawdust, shavings, cuttings, wood, particle board and veneer containing hazardous substances 19 12 12 other wastes (including mixtures of materials) from mechanical treatment of wastes other than those mentioned in 19 12 11 20 01 01 paper and cardboard 20 01 08 biodegradable kitchen waste 20 02 01 biodegradable waste 20 03 01 mixed municipal waste  84% 20 03 02 waste from markets 20 03 07 bulky waste 20 03 99 municipal waste not otherwise specified 02 03 04 Wastes unsuitable for consumption or processing 19 12 08 20 01 11 Textiles other 13 07 01* fuel oil and diesel 1% 13 08 99* wastes not otherwise specified 15 02 02* absorbents, filter materials (including oil filters not otherwise specified), wiping cloths, protective clothing contaminated by dangerous substances 15 02 03 absorbents, filter materials, wiping cloths and protective clothing other than those mentioned in 15 02 02 16 07 08* waste containing oil 19 12 10 Combustible waste (refuse derived fuel) 1% 19 01 99 Wastes not otherwise specified 1% 18 01 04 18 01 06 18 01 07 18 01 09 Healthcare hazardous waste | K22: Include summary of key processes and procedures such as (but not limited to); waste reception, control rooms, grate, bed and bolier, energy & heat generation, cooling systems, residue management, emission controls, health and safety systems, maintenance

Sheet Operational Data
A1: =+'Cover Page'!$B$29 -> Annual Performance Report 2022 | E1: =+'Cover Page'!$B$33 -> The Coventry And Solihull Waste Disposal Company Ltd
A3: Operational Data | K3: Notes:
A4: Plant Size | B4: 315000 | D4: tonnes pa | E4: 18 | F4: MWth | G4: 77 | H4: MWt | K4: * - RDF to include SRF
A5: No. of combustion lines | B5: 3 | D5: No. of Turbines: | F5: 2 | K5: ** - CHP plants only
K6: 2020 updates include; heat in MWh, water in Litres, NCV in MJ/kg
A7: Waste types received | B7: Unit | C7: Q1 | D7: Q2 | E7: Q3 | F7: Q4 | G7: Year Total | H7: %
A8: Household / Local Authority | B8: tonnes | C8: 76871 | D8: 75253 | E8: 77047 | F8: 62180 | G8: =SUM(C8:F8) -> 291351 | H8: =IF(G8>0,G8/$G$18,"-") -> 0.9871787487 | K8: Availabiity Definition: 'the availability of a line is to be calculated by the number of hours the line reported Continuously Monitored emission levels to the Regulator through the calendar year divided by the total number of hours in that year. The overall plant availability is calculated as the Mean of all lines in the plant. For clarity this includes periods of Other Than Normal Operating Conditions (OTNOC) and abnormal operation.' Rationale: The primary function of an Energy from Waste facility is the disposal of waste. It follows therefore that the availability of a plant is determined by the period of time a facility spends undertaking this activity.
A9: Commercial & Industrial | G9: =SUM(C9:F9) -> 0 | H9: -
A10: Hazardous | C10: 94 | D10: 86 | E10: 99 | F10: 103 | G10: 382 | H10: 0.001294322937
A11: Clinical | G11: 0 | H11: -
A12: Waste wood (biomass) | G12: 0 | H12: -
A13: Refuse Derived Fuel * - H'hold/LA | G13: =SUM(C13:F13) -> 0 | H13: -
A14: Refuse Derived Fuel * - C&I | G14: 0 | H14: -
A15: Paper Cardboard | C15: 0 | D15: 0 | F15: 0 | G15: =SUM(C15:F15) -> 0 | H15: =IF(G15>0,G15/$G$18,"-") -> -
A16: HWRC Waste Suitable for EfW | C16: 895 | D16: 1004 | E16: 879 | F16: 624 | G16: =SUM(C16:F16) -> 3402 | H16: =IF(G16>0,G16/$G$18,"-") -> 0.01152692835
A17: Other [Please specify]
A18: Total waste received | C18: =SUM(C8:C17) -> 77860 | D18: =SUM(D8:D17) -> 76343 | E18: =SUM(E8:E17) -> 78025 | F18: =SUM(F8:F17) -> 62907 | G18: =SUM(G8:G17) -> 295135 | H18: 1
A19: Rejected Waste | G19: =SUM(C19:F19) -> 0 | H19: =IF(G19>0,G19/$G$18,"-") -> -
A20: Unprocessed waste transferred out | G20: =SUM(C20:F20) -> 0 | H20: =IF(G20>0,G20/$G$18,"-") -> -
A21: Total waste combusted | C21: =C18-SUM(C19:C20) -> 77860 | D21: =D18-SUM(D19:D20) -> 76343 | E21: 78025 | F21: 62907 | G21: =SUM(C21:F21) -> 295135 | H21: =IF(G21>0,G21/$G$18,"-") -> 1
A23: Energy Useage / Export | B23: Unit | C23: Q1 | D23: Q2 | E23: Q3 | F23: Q4 | G23: Year Total | H23: KWh/te
A24: Power Generated | B24: MWh | C24: 33437 | D24: 33118 | E24: 34878 | F24: 25896 | G24: =SUM(C24:F24) -> 127329 | H24: =IF(G24>0,G24*1000/$G$21,"-") -> 431.4262964
A25: Power Exported | C25: 27777 | D25: 27486 | E25: 28964 | F25: 21225 | G25: =SUM(C25:F25) -> 105452 | H25: =IF(G25>0,G25*1000/$G$21,"-") -> 357.3008962
A26: Power Used on site | C26: 5701 | D26: 5644 | E26: 5924 | F26: 4933 | G26: =SUM(C26:F26) -> 22202 | H26: =IF(G26>0,G26*1000/$G$21,"-") -> 75.22659122
A27: Power Imported | C27: 41 | D27: 12 | E27: 10 | F27: 262 | G27: 325 | H27: =IF(G27>0,G27*1000/$G$21,"-") -> 1.10119098
A28: Parasitic Load | B28: % | C28: =IF(C24>0,1-C25/(C24+C27),"-") -> 0.1702909373 | D28: =IF(D24>0,1-D25/(D24+D27),"-") -> 0.1703591911 | E28: =IF(E24>0,1-E25/(E24+E27),"-") -> 0.1698005045 | F28: =IF(F24>0,1-F25/(F24+F27),"-") -> 0.1885847542 | G28: =IF(G24>0,1-G25/(G24+G27),"-") -> 0.1739232613
A29: Thermal Energy Produced ** | B29: Annual Performance Report 2022 | C29: 4181 | D29: 3989 | E29: 2927 | F29: 2191 | G29: =SUM(C29:F29) -> 13288 | H29: =IF(G29>0,G29*1000/$G$21,"-") -> 45.02346384
A30: Thermal Energy Exported ** | C30: 3733 | D30: 3562 | E30: 2613 | F30: 1956 | G30: 11864 | H30: =IF(G30>0,G30*1000/$G$21,"-") -> 40.1985532
A31: R1 value | G31: Design / Operational / n/a
A33: Waste Disposal & Recovery | B33: Unit | C33: Q1 | D33: Q2 | E33: Q3 | F33: Q4 | G33: Year Total | H33: % inputs
A34: APC Residues - produced | B34: tonnes | C34: 3081 | D34: 2923 | E34: 3006 | F34: 2334 | G34: =SUM(C34:F34) -> 11344 | H34: =IF(G34>0,G34/$G$21,"-") -> 0.03843664764
A35: IBA - produced | C35: 10893 | D35: 11869 | E35: 11489 | F35: 8366 | G35: 42617 | H35: =IF(G35>0,G35/$G$21,"-") -> 0.1443983262
A36: Metals recycling | C36: 2105 | D36: 2077 | E36: 2138 | F36: 1668 | G36: =SUM(C36:F36) -> 7988 | H36: 0.02706558016
A37: Other | C37: 0 | D37: 0 | E37: 0 | F37: 0 | G37: =SUM(C37:F37) -> 0 | H37: -
A38: Other | C38: 0 | D38: 0 | E38: 0 | F38: 0 | G38: 0 | H38: -
A39: Other | C39: 2021 | D39: 0 | E39: 0 | F39: 0 | G39: 2021 | H39: 0.006847713758
A41: Raw Material Usage | B41: Unit | C41: Q1 | D41: Q2 | E41: Q3 | F41: Q4 | G41: Year Total | H41: kg or Ltr /te
A42: Mains Water | B42: ltrs | C42: 23370 | D42: 32922 | E42: 34574 | F42: 20055 | G42: =SUM(C42:F42) -> 110921 | H42: =IF(G42>0,G42/$G$21,"-") -> 0.3758313992
A43: Other Water | B43: ltrs | C43: 98768 | D43: 90854 | E43: 93574 | F43: 78969 | G43: 362165 | H43: =IF(G43>0,G43/$G$21,"-") -> 1.227116404
A44: Ammonia | B44: kgs | C44: 222000 | D44: 210000 | E44: 230000 | F44: 211000 | G44: 873000 | H44: 2.957968387
A45: Urea | B45: kgs | C45: 0 | D45: 0 | E45: 0 | F45: 0 | G45: =SUM(C45:F45) -> 0 | H45: -
A46: Activated Carbon | B46: kgs | C46: 18210 | D46: 16410 | E46: 17030 | F46: 16810 | G46: 68460 | H46: 0.2319616447
A47: Lime / hydrated lime | B47: te | C47: 1119 | D47: 1376 | E47: 1133 | F47: 881 | G47: 4509 | H47: 0.01527775425
A48: Fuel oil | B48: ltrs | C48: 10566 | D48: 7470 | E48: 7939 | F48: 11854 | G48: 37829 | H48: 0.1281752418
A49: Gas | B49: cf | C49: 891400 | D49: 657900 | E49: 891600 | F49: 1520000 | G49: 3960900 | H49: 13.42063801
A50: Other | C50: 0 | D50: 0 | E50: 0 | F50: 0 | G50: 0
A52: Summary | B52: Line/Unit | C52: Q1 | D52: Q2 | E52: Q3 | F52: Q4 | G52: Year Total | J52: Hrs in year
A53: Availability of waste combustion by line, hrs | B53: 1 | C53: 1890 | D53: 2157 | E53: 2098 | F53: 1564 | G53: =SUM(C53:F53) -> 7709 | H53: =SUM(7709/8760) -> 0.8800228311 | J53: 8760
B54: 2 | C54: 1889 | D54: 1937 | E54: 1880 | F54: 1733 | G54: 7439 | H54: =SUM(7439/8760) -> 0.8492009132
B55: 3 | C55: 2137 | D55: 1831 | E55: 2123 | F55: 1367 | G55: 7458 | H55: =SUM(7458/8760) -> 0.851369863
B56: 4 | G56: 0 | H56: x %
B57: 5 | G57: =SUM(C57:F57) -> 0 | H57: x %
A58: Overall Availability, mean avg. of all lines, hrs | C58: 89 | D58: 89 | E58: 92 | F58: 70 | G58: =AVERAGE(G53:G57) -> 4521.2 | H58: 0.86
A59: Hours of turbine operations, hrs | B59: 1 | C59: 2147 | D59: 2183 | E59: 2208 | F59: 1718 | G59: 8256 | H59: 0.942
A60: Hours of turbine operations, hrs | B60: 2 | C60: 1738 | D60: 2173 | E60: 1993 | F60: 1505 | G60: 7409 | H60: 0.846
A61: Hours of heat / steam export | C61: 1738 | D61: 2173 | E61: 1993 | F61: 1505 | G61: 7409 | H61: =IF(B61>0,G60/J53,"n/a") -> n/a
A62: Net Calorific Value of waste | B62: MJ/kg | C62: 13.61 | D62: 13.61 | E62: 13.61 | F62: 13.61 | G62: 54.44 | H62: -
A63: Abnormal Events | B63: qty. | C63: 1 | D63: 1 | E63: 0 | F63: 0 | G63: 2 | H63: =IF(G63>0,"yes","no") -> yes
A64: Abnormal operation | B64: hours | C64: 1.5 | D64: 1.5 | E64: 1.5 | F64: 0 | G64: 4.5 | H64: =+(G64)/J53 -> 0.0005136986301
A65: Permit Breaches | B65: qty. | C65: 0 | D65: 0 | E65: 1 | F65: 0 | G65: 1 | H65: =IF(G65>0,"yes","no") -> yes

Sheet Operational Summary
A1: =+'Cover Page'!$B$29 -> Annual Performance Report 2022 | E1: =+'Cover Page'!$B$33 -> The Coventry And Solihull Waste Disposal Company Ltd
A3: Summary of Plant Operations and Maintenance during the reporting year | K3: Notes:
A5: There were Minor outages as follows - January unit 2 minor, March unit 1 minor, May unit 3 minor, July unit 2 minor, October unit 1 major outage including a total shut down or the whole plant and boiler washes on units 2 and 3, December unit 3 minor. Nox trials took place in February and July to check ahead of the BREF and associated changes to ELVs 17 explosive cleaning visits were undertaken on units 2 and 3. Emission monitoring was undertaken in April June and September by Element. The cooling towers were serviced in May and October and the refuse cranes were replace in September and October | K5: Include summary of key operational and/or mainteanance activity undertaken in the year, such as any major component upgrades and/or replacements
A29: Summary of Residue Handling for the reporting year | B29: Annual Performance Report 2022
A31: Incinerator bottom ash is separated and stored on site for collection by aggregate HGVs, which as loaded by crane before transporting the ash to a processing site which is operated by a third party. All metals metals are left mixed with the IBA and removed from site for processing by a third party (Johnsons Aggregates, Derby), and the metal is now separated by them on their premises. APCr is conveyed by the FGT system into storage silos. From there it is deposited into tankers (Lomas) for transortation to a third party processor (Augean). | K31: Include in here a summary of residue handling regimes and destinations
C53: 2022-01-31

Sheet Perf. Form 1
A1: =+'Cover Page'!C39 -> 2021 | B1: Annual Reporting Performance Form 1
A3: =+'Cover Page'!B31 -> Permit EPR/NP3739PD | F3: Operator: | G3: =+'Cover Page'!B37:I37 -> 0
A4: Facility: | B4: =+'Cover Page'!B33:I33 -> The Coventry And Solihull Waste Disposal Company Ltd | F4: Form: | G4: Performance 1
A6: Reporting Period from: | D6: 2021-01-01 | F6: to: | G6: 2021-12-31
A8: =+A1 -> 2021 | B8: Annual Reporting of Waste Disposal and Recovery
A9: Waste Description | C9: Disposal Route(s) | E9: Disposal Tonnes | G9: Recovery Tonnes | I9: % / tonne of waste incinerated
A10: 1) Hazardous Wastes
A11: APC Residues | C11: Pretreament and landfill | E11: 11344 | I11: =IF((E11+G11)>0,(E11+G11)/'Operational Data'!$G$21, "-") -> 0.03843664764
A12: IBA | C12: N/A | I12: =IF((E12+G12)>0,(E12+G12)/'Operational Data'!$G$21, "-") -> -
I13: =IF((E13+G13)>0,(E13+G13)/'Operational Data'!$G$21, "-") -> -
I14: =IF((E14+G14)>0,(E14+G14)/'Operational Data'!$G$21, "-") -> -
A15: Total Hazardous Waste | E15: =SUM(E11:F14) -> 11344 | G15: =SUM(G11:H14) -> 0 | I15: =IF((E15+G15)>0,(E15+G15)/'Operational Data'!$G$21, "-") -> 0.03843664764
A17: 2) Non-Hazardous Wastes
A18: IBA | C18: Recovery | G18: 42616 | I18: =IF((E18+G18)>0,(E18+G18)/'Operational Data'!$G$21, "-") -> 0.1443949379
A19: Ferrous Metal | C19: Recovery | G19: 7988 | I19: =IF((E19+G19)>0,(E19+G19)/'Operational Data'!$G$21, "-") -> 0.02706558016
A20: Process Water | C20: Disposal to foul sewer | E20: 119165 | I20: =IF((E20+G20)>0,(E20+G20)/'Operational Data'!$G$21, "-") -> 0.403764379
I21: =IF((E21+G21)>0,(E21+G21)/'Operational Data'!$G$21, "-") -> -
I22: =IF((E22+G22)>0,(E22+G22)/'Operational Data'!$G$21, "-") -> -
A23: Total Non-Hazardous Waste | E23: =SUM(E18:F22) -> 119165 | G23: =SUM(G18:H22) -> 50604 | I23: =IF((E23+G23)>0,(E23+G23)/'Operational Data'!$G$21, "-") -> 0.5752248971
A24: TOTAL WASTE | E24: =+E23+E15 -> 130509 | G24: =+G23+G15 -> 50604 | I24: =IF((E24+G24)>0,(E24+G24)/'Operational Data'!$G$21, "-") -> 0.6136615447
A26: Operator’s comments :
A31: =+A1 -> 2021 | B31: Annual Reporting of Water and Other Raw Material Usage
A32: Raw Material | E32: Usage | G32: Unit | H32: Specific Useage | J32: Unit
A33: Mains Water | E33: =+'Operational Data'!G42 -> 110921 | G33: m3 | H33: =IF(E33>0,E33/'Operational Data'!$G$21,"-") -> 0.3758313992 | J33: m3/te
A34: Total Water | E34: =+'Operational Data'!G43+'Operational Data'!G42 -> 473086 | G34: m3 | H34: =IF(E34>0,E34/'Operational Data'!$G$21,"-") -> 1.602947804 | J34: m3/te
A35: Urea / Ammonia | E35: =+'Operational Data'!G44 -> 873000 | G35: kg | H35: =IF(E35>0,E35/'Operational Data'!$G$21,"-") -> 2.957968387 | J35: kg/te
A36: Activated Carbon | E36: =+'Operational Data'!G46 -> 68460 | G36: kg | H36: =IF(E36>0,E36/'Operational Data'!$G$21,"-") -> 0.2319616447 | J36: kg/te
A37: Lime / hydrated lime / Sodium Bicarb. | E37: =+'Operational Data'!G47 -> 4509 | G37: kg | H37: =IF(E37>0,E37/'Operational Data'!$G$21,"-") -> 0.01527775425 | J37: kg/te
A39: Operator’s comments :
A43: =+A31 -> 2021 | B43: Annual Reporting of other performance indicators
A44: Parameter | C44: Results by Line
C45: A1 | D45: A2 | E45: A3 | F45: A4 | G45: A5 | I45: Turbine 1 | J45: Turbine 2
A46: Operating hours for the year, hours | C46: 8063 | D46: 8153 | E46: 8102 | I46: 8636 | J46: 8267
A47: Number of periods of abnormal operation, qty. | C47: 1 | D47: 1 | E47: 1 | I47: 0 | J47: 0
A48: Cumulative hours of abnormal operation for this year, hours | C48: 1.5 | D48: 1.65 | E48: 1.5 | I48: 0 | J48: 0
A50: Operator’s comments :
C53: 2022-01-31
A54: Signed: | G54: Date: | H54: 2022-01-28

Sheet Energy Form 1
A1: =+'Cover Page'!C39 -> 2021 | B1: Annual Reporting of Energy Usage/Export
A3: =+'Cover Page'!B31 -> Permit EPR/NP3739PD | F3: Operator: | G3: CSWDC
A5: Facility: | B5: =+'Cover Page'!B33:I33 -> The Coventry And Solihull Waste Disposal Company Ltd | F5: Form: | G5: Energy 1
A7: Reporting Period from: | D7: =+'Perf. Form 1'!D6:E6 -> 2021-01-01 | F7: to: | G7: =+'Perf. Form 1'!G6:H6 -> 2021-12-31
A9: Energy Source | D9: Energy Usage | F9: Unit | G9: Specific Useage (KWh/tonne incinerated
A10: Electricity Produced | D10: =+'Operational Data'!G24 -> 127329 | F10: MWh | G10: =+'Operational Data'!H24 -> 431.4262964
A11: Electricity Imported | D11: =+'Operational Data'!G27 -> 325 | F11: MWh | G11: =+'Operational Data'!H27 -> 1.10119098
A12: Electricity Exported | D12: =+'Operational Data'!G25 -> 105452 | F12: MWh | G12: =+'Operational Data'!H25 -> 357.3008962
A13: Gas Oil | D13: =+'Operational Data'!G48 -> 37829 | F13: litres
A14: Steam/hot water exported | D14: =+'Operational Data'!G30 -> 11864 | F14: MWh (t) | G14: =+'Operational Data'!H30 -> 40.1985532
A15: Gas Oil | D15: 3960900 | F15: cf | G15: 13.42 cf/te incinerated
A18: Operator’s comments :
A29: Signed: | B29: Annual Performance Report 2022 | G29: Date: | H29: 2022-01-28
C39: 2021
C53: 2022-01-31

Sheet Permit Compliance
A1: =+'Cover Page'!$B$29 -> Annual Performance Report 2022 | E1: =+'Cover Page'!$B$33 -> The Coventry And Solihull Waste Disposal Company Ltd
A3: Summary of Permit Compliance
A5: Compliance with permit limits for continuously monitored pollutants
A7: The plant met its emission limits as shown in the table below:
A8: Substance | C8: Percentage time compliant during operation | L8: Notes:
C9: Half-hourly limit | F9: Daily limit | L9: Report to 2 decimal places, i.e. xx.xx% Please provide a brief summary of each notification or non-compliance in the table (rather than just referring to notifications that were sent to the Regulator).
A10: Particulates | C10: 1 | F10: 1
A11: Oxides of nitrogen | C11: 1 | F11: 1
A12: Sulphur dioxide | C12: 1 | F12: 1
A13: Carbon monoxide | C13: 100% 95% of 10-min averages | F13: 1
A14: Total organic carbon | C14: 1 | F14: 1
A15: Hydrogen chloride | C15: 1 | F15: 1
A16: Hydrogen fluoride | C16: 1 | F16: 1
C17: 1 | F17: 1
A19: Summary of any notifications or non-compliances under the permit
A20: Date | B20: Summary of notification or non-compliance [including Line/Reference] | E20: Reason | H20: Measures taken to prevent reoccurrence
A21: 2021-01-02 | B21: Loss of all CEMs data acrioss all three lines for 1hr 31 mins | E21: Control box failed unexpectedly | H21: Call out maintenance technician found fault and replaced unit
A27: Summary of any complaints received and actions to taken to resolve them.
A28: Date | B28: Summary of complaint [including Line/Reference] | E28: Reason * | H28: Measures taken to prevent reoccurrence
E34: * including whether substantiated by the operator or the EA
C39: 2021
C53: 2022-01-31

Sheet Improvements
A1: =+'Cover Page'!$B$29 -> Annual Performance Report 2022 | E1: =+'Cover Page'!$B$33 -> The Coventry And Solihull Waste Disposal Company Ltd
A3: Summary of Plant Improvements
A5: Summary of any efficiency improvements that have been completed within the year.
A6: Further installation of low energy lighting, replacement of refuse cranes, installation of acoustic hush kit covers on plant
A7: Installation of imporved water control on softeners, removal of magnetic separator in ash stream
A8: Carbon footprint policy developed
A16: Summary of any permit improvement conditions that have been completed within the year and the resulting environmental benefits.
A17: n/a
A27: Summary of any changes to the plant or operating techniques which required a variation to the permit and a summary of the resulting environmental impact.
A38: Summary of any other improvements made to the plant or planned to be made and a summary of the resulting environmental benefits.
A39: Intall additional CEMs equipment to give full redundancy in case of failure and safeguard against fire damage etc
C53: 2022-01-31

Sheet Public Liasion
A1: =+'Cover Page'!$B$29 -> Annual Performance Report 2022 | E1: =+'Cover Page'!$B$33 -> The Coventry And Solihull Waste Disposal Company Ltd
A3: Details of Public & Stakeholder Liasion
A5: Summary of events held during the reporting year.
A6: Date | C6: Description
C7: No site visits were allowed due to the ongoing pandemic
A16: List of events planned for next year
A17: Date | C17: Description
C18: Unsure if we can recommence site visits - Pandemic dependent, hopefully we can restart
A29: If you wish to be involved in the public liasion programme, please contact _________________
C39: 2021
C53: 2022-01-31

Sheet Residue Quality
A1: =+'Cover Page'!$B$29 -> Annual Performance Report 2022 | E1: =+'Cover Page'!$B$33 -> The Coventry And Solihull Waste Disposal Company Ltd
A3: Residue Quality Monitoring Requirements
A5: Summary of monitoring undertaken and compliance
A6: Monthly sampling of IBA for metails, LOI (6/yr), ph, moisture, alcalinity reserve, etc, with quarterly dioxin assessment
A8: Quarterly APCr sampling for metals and dioxins
A13: Commentary on any specific events
A14: Date & Event | C14: Description
A27: Residue Quality Monitoring Results
A28: Parameter (unit) | C28: Limit | D28: Normal Operation
D29: Bottom ash | F29: APC Residues
A30: Loss on Ignition (average %) | C30: <5% | D30: 0.0203
A31: Total Organic Carbon (average %) | C31: <3% | D31: n/a
A32: No. of Assessments Undertaken | C32: --- | D32: 12 | F32: 4
A33: No. of Hazardous Results | C33: --- | D33: 0
A35: Comments :
C53: 2022-01-31

Sheet Water
A1: =+'Cover Page'!$B$29 -> Annual Performance Report 2022 | E1: =+'Cover Page'!$B$33 -> The Coventry And Solihull Waste Disposal Company Ltd
A3: Emissions to Water
A5: Summary of monitoring undertaken and compliance
A6: PH monitoring taken from IBA quench water on a weekly basis
A8: Effluent content monitored by STW
A13: Commentary on any specific events
A14: Date & Event | C14: Description
A22: Emissions to Water / Sewer
A23: Parameter | D23: Monitoring Frequency | G23: Limit | H23: Target | I23: Max. | J23: Average
A24: PH | D24: Weekly | G24: 12 | H24: 9 | I24: 11.13 | J24: 9.83
C39: 2021
C53: 2022-01-31

Sheet Air (periodic)
A1: =+'Cover Page'!$B$29 -> Annual Performance Report 2022 | E1: =+'Cover Page'!$B$33 -> The Coventry And Solihull Waste Disposal Company Ltd
A3: Emissions to Air (periodically monitored)
A5: Summary of monitoring undertaken, standards used and compliance | M5: Notes:
M6: Template may require adjustment for any bespoke monitoring requirements of permit.
A9: Results of emissions to air that are periodically monitored
A10: Substance | C10: Ref. Period | D10: Emission Limit Value | F10: Average
F11: A1 | G11: A2 | H11: A3 | I11: A4 | J11: A5
A12: Hydrogen fluoride | C12: 1 hr | D12: 2 mg/m3 | F12: =AVERAGE(M15,P15) -> 0.05 | G12: =SUM(N15,Q15) -> 0.03 | H12: =SUM(O15,R15) -> 0.08
A13: Cd and Th and their compounds | C13: 6-8hrs | D13: 0.05 mg/m3 | F13: 0.001 | G13: =SUM(N16,Q16) -> 0.001 | H13: =SUM(O16,R16) -> 0 | M13: H1 | P13: H2
A14: Hg and its compounds | C14: 6-8hrs | D14: 0.05 mg/m3 | F14: 0.0025 | G14: 0.004 | H14: 0.005 | M14: A1 | N14: A2 | O14: A3 | P14: A1 | Q14: A2 | R14: A3
A15: Sb, As, Pb, Cr, Co, Cu, Mn, Ni, V and their compounds | C15: 6-8hrs | D15: 0.5 mg/m3 | F15: 0.027 | G15: 0.058 | H15: 0.051 | K15: Hydrogen fluoride | M15: 0.04 | N15: 0.03 | O15: 0.04 | P15: 0.06 | Q15: <0.03 | R15: 0.04
A16: Dioxins & Furans (I-TEQ) | C16: 6-8hrs | D16: 0.1 ng/m3 | F16: 0.0042 | G16: 0.0097 | H16: 0.0174 | K16: Cd and Th and their compounds | M16: 0.001 | N16: 0.001 | O16: <0.001 | P16: 0.001 | Q16: <0.001 | R16: <0.001
A17: PCBs (WHO-TEQ Humans / Mammals) | C17: 6-8hrs | D17: None set ng/m3 | F17: 0.000904 | G17: 0.007391 | H17: 0.00622 | K17: Hg and its compounds | M17: 0.004 | N17: 0.004 | O17: 0.001 | P17: 0.001 | Q17: <0.001 | R17: 0.004
A18: PCBs (WHO-TEQ Fish) | C18: 6-8hrs | D18: None set ng/m3 | F18: 5.1e-05 | G18: 0.000311 | H18: 0.00031 | K18: Sb, As, Pb, Cr, Co, Cu, Mn, Ni, V and their compounds | M18: 0.013 | N18: 0.013 | O18: 0.025 | P18: 0.041 | Q18: 0.045 | R18: 0.026
A19: PCBs (WHO-TEQ Birds) | C19: 6-8hrs | D19: None set ng/m3 | F19: 0.00332 | G19: 0.01615 | H19: 0.01024 | K19: Dioxins & Furans (I-TEQ) | M19: 0.0044 | N19: 0.0008 | O19: 0.014 | P19: 0.004 | Q19: 0.0089 | R19: 0.0034
A20: Dioxins & Furans (WHO-TEQ Humans / Mammals) | C20: 6-8hrs | D20: None set ng/m3 | F20: 0.00425 | G20: 0.0094 | H20: 0.0173 | K20: PCBs (WHO-TEQ Humans / Mammals) | M20: 0.00134 | N20: 0.000191 | O20: 0.00346 | P20: 0.000468 | Q20: 0.0072 | R20: 0.00276
A21: Dioxins & Furans (WHO-TEQ Fish) | C21: 6-8hrs | D21: None set ng/m3 | F21: 0.005 | G21: 0.0109 | H21: 0.0199 | K21: PCBs (WHO-TEQ Fish) | M21: 8e-05 | N21: 1.1e-05 | O21: 0.0002 | P21: 2.2e-05 | Q21: 0.0003 | R21: 0.00011
A22: Dioxins & Furans (WHO-TEQ Birds) | C22: 6-8hrs | D22: None set ng/m3 | F22: 0.0083 | G22: 0.016 | H22: 0.0305 | K22: PCBs (WHO-TEQ Birds) | M22: 0.0057 | N22: 0.00785 | O22: 0.00679 | P22: 0.00094 | Q22: 0.0083 | R22: 0.00345
A23: Anthanthrene | C23: 6-8hrs | D23: None set µg/m3 | F23: 0.002 | G23: 0.004 | H23: 0.004 | K23: Dioxins & Furans (WHO-TEQ Humans / Mammals) | M23: 0.0045 | N23: 0.0009 | O23: 0.014 | P23: 0.004 | Q23: 0.0085 | R23: 0.0033
A24: Benzo(a)anthracene | C24: 6-8hrs | D24: None set µg/m3 | F24: 0.002 | G24: 0.004 | H24: 0.004 | K24: Dioxins & Furans (WHO-TEQ Fish) | M24: 0.005 | N24: 0.001 | O24: 0.016 | P24: 0.005 | Q24: 0.0099 | R24: 0.0039
A25: Benzo(a)pyrene | C25: 6-8hrs | D25: None set µg/m3 | F25: 0.002 | G25: 0.004 | H25: 0.004 | K25: Dioxins & Furans (WHO-TEQ Birds) | M25: 0.0096 | N25: 0.0018 | O25: 0.025 | P25: 0.007 | Q25: 0.0142 | R25: 0.0055
A26: Benzo(b)fluoranthene | C26: 6-8hrs | D26: None set µg/m3 | F26: =AVERAGE(M29,P29) -> 0.002 | G26: 0.004 | H26: 0.004 | K26: Anthanthrene | M26: 0.002 | N26: 0.002 | O26: 0.002 | P26: 0.002 | Q26: 0.002 | R26: 0.002
A27: Benzo(b)naptho(2,1-d) thiophene | C27: 6-8hrs | D27: None set µg/m3 | F27: 0.006 | G27: 0.012 | H27: 0.012 | K27: Benzo(a)anthracene | M27: 0.002 | N27: 0.002 | O27: 0.002 | P27: 0.002 | Q27: 0.002 | R27: 0.002
A28: Benzo(c)phenanthrene | C28: 6-8hrs | D28: None set µg/m3 | F28: 0.002 | G28: 0.004 | H28: 0.004 | K28: Benzo(a)pyrene | M28: 0.002 | N28: 0.002 | O28: 0.002 | P28: 0.002 | Q28: 0.002 | R28: 0.002
A29: Benzo(ghi)perylene | C29: 6-8hrs | D29: None set µg/m3 | F29: 0.002 | G29: 0.004 | H29: 0.004 | K29: Benzo(b)fluoranthene | M29: 0.002 | N29: 0.002 | O29: 0.002 | P29: 0.002 | Q29: 0.002 | R29: 0.002
A30: Benzo(k)fluoranthene | C30: 6-8hrs | D30: None set µg/m3 | F30: 0.002 | G30: 0.004 | H30: 0.004 | K30: Benzo(b)naptho(2,1-d) thiophene | M30: 0.006 | N30: 0.006 | O30: 0.006 | P30: 0.006 | Q30: 0.006 | R30: 0.006
A31: Cholanthrene | C31: 6-8hrs | D31: None set µg/m3 | F31: 0.002 | G31: 0.004 | H31: 0.004 | K31: Benzo(c)phenanthrene | M31: 0.002 | N31: 0.002 | O31: 0.002 | P31: 0.002 | Q31: 0.002 | R31: 0.002
A32: Chrysene | C32: 6-8hrs | D32: None set µg/m3 | F32: 0.0034 | G32: 0.004 | H32: 0.004 | K32: Benzo(ghi)perylene | M32: 0.002 | N32: 0.002 | O32: 0.002 | P32: 0.002 | Q32: 0.002 | R32: 0.002
A33: Cyclopenta(cd)pyrene | C33: 6-8hrs | D33: None set µg/m3 | F33: 0.002 | G33: 0.004 | H33: 0.004 | K33: Benzo(k)fluoranthene | M33: 0.002 | N33: 0.002 | O33: 0.002 | P33: 0.002 | Q33: 0.002 | R33: 0.002
A34: Dibenzo(ai)pyrene | C34: 6-8hrs | D34: None set µg/m3 | F34: 0.002 | G34: 0.004 | H34: 0.004 | K34: Cholanthrene | M34: 0.002 | N34: 0.002 | O34: 0.002 | P34: 0.002 | Q34: 0.002 | R34: 0.002
A35: Dibenzo(ah)anthracene | C35: 6-8hrs | D35: None set µg/m3 | F35: 0.002 | G35: 0.004 | H35: 0.004 | K35: Chrysene | M35: 0.0048 | N35: 0.002 | O35: 0.002 | P35: 0.002 | Q35: 0.002 | R35: 0.002
A36: Fluoranthene | C36: 6-8hrs | D36: None set µg/m3 | F36: 0.115 | G36: 0.2302 | H36: 0.1011 | K36: Cyclopenta(cd)pyrene | M36: 0.002 | N36: 0.002 | O36: 0.002 | P36: 0.002 | Q36: 0.002 | R36: 0.002
A37: Indeno(123-cd) pyrene | C37: 6-8hrs | D37: None set µg/m3 | F37: 0.002 | G37: 0.004 | H37: 0.004 | K37: Dibenzo(ai)pyrene | M37: 0.002 | N37: 0.002 | O37: 0.002 | P37: 0.002 | Q37: 0.002 | R37: 0.002
A38: Naphthalene | C38: 6-8hrs | D38: None set µg/m3 | F38: 0.1053 | G38: 0.6263 | H38: 0.1391 | K38: Dibenzo(ah)anthracene | M38: 0.002 | N38: 0.002 | O38: 0.002 | P38: 0.002 | Q38: 0.002 | R38: 0.002
A39: Comments : | K39: Fluoranthene | M39: 0.198 | N39: 0.1732 | O39: 0.0151 | P39: 0.032 | Q39: 0.057 | R39: 0.086
K40: Indeno(123-cd) pyrene | M40: 0.002 | N40: 0.002 | O40: 0.002 | P40: 0.002 | Q40: 0.002 | R40: 0.002
K41: Naphthalene | M41: 0.1996 | N41: 0.5163 | O41: 0.0611 | P41: 0.011 | Q41: 0.11 | R41: 0.078
C53: 2022-01-31

Sheet Air (CEMS)
A1: =+'Cover Page'!$B$29 -> Annual Performance Report 2022 | I1: =+'Cover Page'!$B$33 -> The Coventry And Solihull Waste Disposal Company Ltd
A3: Emissions to Air (continously monitored)
P4: Notes:
A5: Summary of monitoring undertaken, standards used and compliance | P5: Template may require adjustment for any bespoke monitoring requirements of permit
A6: MIR FT, FID, MCERTS, A1-Cbiss installation, software, servicing and support | P6: Report to 2 decimal places, i.e. xx.xx%
A11: Results of emissions to air that are continuously monitored (maximum and average values for each line)
A12: Substance | B12: Reference Period | C12: Emission Limit Value | D12: A1 | F12: A2 | H12: A3 | J12: A4 | L12: A5
D13: Max. | E13: Avg. | F13: Max. | G13: Avg. | H13: Max. | I13: Avg. | J13: Max. | K13: Avg. | L13: Max. | M13: Avg.
A14: Oxides of nitrogen | B14: Daily mean | C14: 200 mg/m3 | D14: =NOx!O19 -> 197.42 | E14: =NOx!N19 -> 185.2108333 | F14: =NOx!O34 -> 198.46 | G14: =NOx!N34 -> 179.9208333 | H14: =NOx!O49 -> 195.34 | I14: =NOx!N49 -> 179.5416667
B15: ½ hourly mean | C15: 400 mg/m3 | D15: =NOx!M19 -> 333.45 | E15: =NOx!L19 -> 184.9058333 | F15: =NOx!M34 -> 310.72 | G15: =NOx!L34 -> 179.575 | H15: =NOx!M49 -> 310.61 | I15: =NOx!L49 -> 179.3758333
A16: Particulates | B16: Daily mean | C16: 10 mg/m3 | D16: =Particulates!O19 -> 0.72 | E16: =Particulates!N19 -> 0.47 | F16: =Particulates!O34 -> 0.92 | G16: =Particulates!N34 -> 0.46 | H16: =Particulates!O49 -> 4.33 | I16: =Particulates!N49 -> 0.9825
B17: ½ hourly mean | C17: 30 mg/m3 | D17: =Particulates!M19 -> 8.78 | E17: =Particulates!L19 -> 0.4733333333 | F17: =Particulates!M34 -> 3.91 | G17: =Particulates!L34 -> 0.4658333333 | H17: =Particulates!M49 -> 26.39 | I17: =Particulates!L49 -> 0.9658333333
A18: Total Organic Carbon | B18: Daily mean | C18: 10 mg/m3 | D18: =TOC!O19 -> 4.09 | E18: =TOC!N19 -> 0.6975 | F18: =TOC!O34 -> 1.53 | G18: =TOC!N34 -> 0.5041666667 | H18: =TOC!O49 -> 1.7 | I18: =TOC!N49 -> 0.5958333333
B19: ½ hourly mean | C19: 20 mg/m3 | D19: =TOC!M19 -> 5.37 | E19: =TOC!L19 -> 0.6941666667 | F19: =TOC!M34 -> 5.35 | G19: =TOC!L34 -> 0.5016666667 | H19: =TOC!M49 -> 10.22 | I19: =TOC!L49 -> 0.5958333333
A20: Hydrogen chloride | B20: Daily mean | C20: 10 mg/m3 | D20: =HCl!O19 -> 2.85 | E20: =HCl!N19 -> 0.8 | F20: =HCl!O34 -> 3.1 | G20: =HCl!N34 -> 1.054166667 | H20: =HCl!O49 -> 2.51 | I20: =HCl!N49 -> 0.8258333333
B21: ½ hourly mean | C21: 60 mg/m3 | D21: =HCl!M19 -> 9.86 | E21: =HCl!L19 -> 0.8116666667 | F21: =HCl!M34 -> 13.43 | G21: =HCl!L34 -> 1.046666667 | H21: =HCl!M49 -> 6.72 | I21: =HCl!L49 -> 0.815
A22: Sulphur dioxide | B22: Daily mean | C22: 50 mg/m3 | D22: ='SO2'!O19 -> 47.97 | E22: ='SO2'!N19 -> 37.58083333 | F22: ='SO2'!O34 -> 45.59 | G22: ='SO2'!N34 -> 39.92916667 | H22: ='SO2'!O49 -> 44.66 | I22: ='SO2'!N49 -> 36.00583333
B23: ½ hourly mean | C23: 200 mg/m3 | D23: ='SO2'!M19 -> 132.81 | E23: ='SO2'!L19 -> 37.32 | F23: ='SO2'!M34 -> 146.85 | G23: ='SO2'!L34 -> 39.71333333 | H23: ='SO2'!M49 -> 166.01 | I23: ='SO2'!L49 -> 35.63583333
A24: Carbon monoxide | B24: Daily mean | C24: 50 mg/m3 | D24: ='CO 95% 10 min'!Q19 -> 45.61 | E24: ='CO 95% 10 min'!P19 -> 25.63083333 | F24: ='CO 95% 10 min'!Q34 -> 45.63 | G24: ='CO 95% 10 min'!P34 -> 17.60833333 | H24: ='CO 95% 10 min'!Q49 -> 36.72 | I24: ='CO 95% 10 min'!P49 -> 14.61583333
B25: ½ hourly mean * | C25: 100 mg/m3 *
B26: 95%ile 10-min avg * | C26: 150 mg/m3 * | D26: ='CO 95% 10 min'!M19 -> 76.02 | E26: ='CO 95% 10 min'!N19 -> 25.55166667 | F26: ='CO 95% 10 min'!M34 -> 77.3 | G26: ='CO 95% 10 min'!N34 -> 17.57 | H26: ='CO 95% 10 min'!M49 -> 89.97 | I26: ='CO 95% 10 min'!N49 -> 14.67
A27: Ammonia | B27: Daily mean | C27: No limit set | D27: ='NH3'!O19 -> 19.57 | E27: ='NH3'!N19 -> 4.624166667 | F27: ='NH3'!O34 -> 18.09 | G27: ='NH3'!N34 -> 4.784166667 | H27: ='NH3'!O49 -> 10.54 | I27: ='NH3'!N49 -> 2.6375
A28: * = delete or amend as appropriate
A29: Comments : | B29: Annual Performance Report 2022
C39: 2021
C53: 2022-01-31

Sheet HCl
A1: =+'Cover Page'!$B$29 -> Annual Performance Report 2022 | E1: =+'Cover Page'!$B$33 -> The Coventry And Solihull Waste Disposal Company Ltd
A3: Monitoring of Hydrogen Chloride emissions | D3: Whole Installation | G3: See Notes in Cell Q3 | J3: =+A3 -> Monitoring of Hydrogen Chloride emissions | N3: Per Combustion Line | Q3: Notes:
Q4: User to add logic to complete Whole installation, Table A5:G18. From the data in Per Combustion Line, Table J6:O79, subject to No. of lines installed
A5: mg/Nm3 | B5: 1/2 Hourly Reference Periods | E5: Daily Reference Periods
A6: =+'Cover Page'!C39 -> 2021 | B6: 1/2 hourly HCl ELV | C6: Monthly 1/2 hourly mean | D6: Highest 1/2 hourly maximum | E6: Daily HCl ELV | F6: Monthly daily mean | G6: Highest daily maximum | J6: =+A6 -> 2021 | K6: mg/Nm3 | L6: Monthly 1/2 hourly mean | M6: Monthly 1/2 hourly maximum | N6: Monthly daily mean | O6: Monthly daily maximum
A7: Jan | B7: 60 | C7: 1.16 | D7: 4.16 | E7: 10 | F7: 1.14 | G7: 3.05 | J7: A1 | K7: Jan | L7: 0.69 | M7: 2.35 | N7: 0.69 | O7: 1.2
A8: Feb | B8: 60 | C8: 0.79 | D8: 6.84 | E8: 10 | F8: 0.8 | G8: 1.5 | K8: Feb | L8: 0.48 | M8: 6.84 | N8: 0.49 | O8: 1.5
A9: Mar | B9: 60 | C9: 0.92 | D9: 13.43 | E9: 10 | F9: 0.93 | G9: 2.02 | K9: Mar | L9: 0.33 | M9: 4.19 | N9: 0.33 | O9: 0.76 | Q9: Whole Installation table A5:G18:
A10: Apr | B10: 60 | C10: 0.7 | D10: 11.66 | E10: 10 | F10: 0.7 | G10: 2.07 | K10: Apr | L10: 0.07 | M10: 3.77 | N10: 0.07 | O10: 0.81 | Q10: Mean: for 1/2 hourly and daily periods calculate mean of values across all operational combustion lines for the month
A11: May | B11: 60 | C11: 0.73 | D11: 5.46 | E11: 10 | F11: 0.73 | G11: 2.51 | K11: May | L11: 0.23 | M11: 3.5 | N11: 0.23 | O11: 0.92
A12: Jun | B12: 60 | C12: 1.12 | D12: 8.16 | E12: 10 | F12: 1.13 | G12: 3.1 | K12: Jun | L12: 1.3 | M12: 8.16 | N12: 1.29 | O12: 2.85
A13: Jul | B13: 60 | C13: 1.02 | D13: 6.06 | E13: 10 | F13: 1.02 | G13: 2.93 | K13: Jul | L13: 1.46 | M13: 4.36 | N13: 1.45 | O13: 2.22 | Q13: Maximum: for 1/2 hourly and daily periods use the highest value across all operational combustion lines for the month
A14: Aug | B14: 60 | C14: 1.01 | D14: 7.58 | E14: 10 | F14: 1.01 | G14: 2.93 | K14: Aug | L14: 1.39 | M14: 7.58 | N14: 1.39 | O14: 1.83
A15: Sep | B15: 60 | C15: 1.03 | D15: 6.5 | E15: 10 | F15: 1.03 | G15: 1.96 | K15: Sep | L15: 1.32 | M15: 4.52 | N15: 1.29 | O15: 1.96
A16: Oct | B16: 60 | C16: 0.56 | D16: 9.52 | E16: 10 | F16: 0.55 | G16: 1.4 | K16: Oct | L16: 0.79 | M16: 2.06 | N16: 0.7 | O16: 0.78
A17: Nov | B17: 60 | C17: 0.77 | D17: 9.86 | E17: 10 | F17: 0.77 | G17: 1.45 | K17: Nov | L17: 0.82 | M17: 9.86 | N17: 0.82 | O17: 1.36
A18: Dec | B18: 60 | C18: 0.81 | D18: 8.8 | E18: 10 | F18: 0.81 | G18: 1.84 | K18: Dec | L18: 0.86 | M18: 2.37 | N18: 0.85 | O18: 1.19
K19: Annual | L19: =AVERAGE(L7:L18) -> 0.8116666667 | M19: =MAX(M7:M18) -> 9.86 | N19: =AVERAGE(N7:N18) -> 0.8 | O19: =MAX(O7:O18) -> 2.85
J21: =+A6 -> 2021 | K21: mg/Nm3 | L21: Monthly 1/2 hourly mean | M21: Monthly 1/2 hourly maximum | N21: Monthly daily mean | O21: Monthly daily maximum
J22: A2 | K22: Jan | L22: 2.09 | M22: 4.16 | N22: 2.08 | O22: 3.05
K23: Feb | L23: 1.09 | M23: 2.41 | N23: 1.11 | O23: 1.35
K24: Mar | L24: 1.24 | M24: 13.43 | N24: 1.22 | O24: 2.02
K25: Apr | L25: 1.12 | M25: 11.66 | N25: 1.2 | O25: 2.07
K26: May | L26: 1.11 | M26: 5.46 | N26: 1.11 | O26: 2.2
K27: Jun | L27: 1.4 | M27: 6.8 | N27: 1.4 | O27: 3.1
K28: Jul | L28: 0.85 | M28: 5.14 | N28: 0.85 | O28: 2.93
B29: Annual Performance Report 2022 | K29: Aug | L29: 0.74 | M29: 5.88 | N29: 0.74 | O29: 2.93
K30: Sep | L30: 1 | M30: 3.68 | N30: 1.02 | O30: 1.6
K31: Oct | L31: 0.43 | M31: 9.52 | N31: 0.42 | O31: 1.4
K32: Nov | L32: 0.69 | M32: 8.26 | N32: 0.69 | O32: 1.45
K33: Dec | L33: 0.8 | M33: 8.8 | N33: 0.81 | O33: 1.84
K34: Annual | L34: =AVERAGE(L22:L33) -> 1.046666667 | M34: =MAX(M22:M33) -> 13.43 | N34: =AVERAGE(N22:N33) -> 1.054166667 | O34: =MAX(O22:O33) -> 3.1
J36: =+A6 -> 2021 | K36: mg/Nm3 | L36: Monthly 1/2 hourly mean | M36: Monthly 1/2 hourly maximum | N36: Monthly daily mean | O36: Monthly daily maximum
J37: A3 | K37: Jan | L37: 0.94 | M37: 3.47 | N37: 0.94 | O37: 1.55
K38: Feb | L38: 0.81 | M38: 2.18 | N38: 0.82 | O38: 1.08
C39: 2021 | K39: Mar | L39: 1.01 | M39: 6.72 | N39: 1.02 | O39: 1.7
K40: Apr | L40: 1.05 | M40: 5.82 | N40: 1.06 | O40: 1.88
K41: May | L41: 0.91 | M41: 4.99 | N41: 0.92 | O41: 2.51
K42: Jun | L42: 0.55 | M42: 2.62 | N42: 0.56 | O42: 0.86
K43: Jul | L43: 0.74 | M43: 6.06 | N43: 0.76 | O43: 1.09
K44: Aug | L44: 0.89 | M44: 2.89 | N44: 0.89 | O44: 1.45
K45: Sep | L45: 0.75 | M45: 6.5 | N45: 0.78 | O45: 1.32
K46: Oct | L46: 0.59 | M46: 1.93 | N46: 0.62 | O46: 0.88
K47: Nov | L47: 0.79 | M47: 3.1 | N47: 0.8 | O47: 1.16
A48: Comments : | K48: Dec | L48: 0.75 | M48: 4.71 | N48: 0.74 | O48: 0.95
K49: Annual | L49: =AVERAGE(L37:L48) -> 0.815 | M49: =MAX(M37:M48) -> 6.72 | N49: =AVERAGE(N37:N48) -> 0.8258333333 | O49: =MAX(O37:O48) -> 2.51
J51: =+A6 -> 2021 | K51: mg/Nm3 | L51: Monthly 1/2 hourly mean | M51: Monthly 1/2 hourly maximum | N51: Monthly daily mean | O51: Monthly daily maximum
J52: A4 | K52: Jan
C53: 2022-01-31 | K53: Feb
K54: Mar
K55: Apr
K56: May
K57: Jun
K58: Jul
K59: Aug
K60: Sep
K61: Oct
K62: Nov
K63: Dec
K64: Annual | L64: =AVERAGE(L52:L63) ->  | M64: =MAX(M52:M63) -> 0 | N64: =AVERAGE(N52:N63) ->  | O64: =MAX(O52:O63) -> 0
J66: =+A6 -> 2021 | K66: mg/Nm3 | L66: Monthly 1/2 hourly mean | M66: Monthly 1/2 hourly maximum | N66: Monthly daily mean | O66: Monthly daily maximum
J67: A5 | K67: Jan
K68: Feb
K69: Mar
K70: Apr
K71: May
K72: Jun
K73: Jul
K74: Aug
K75: Sep
K76: Oct
K77: Nov
K78: Dec
K79: Annual | L79: =AVERAGE(L67:L78) ->  | M79: =MAX(M67:M78) -> 0 | N79: =AVERAGE(N67:N78) ->  | O79: =MAX(O67:O78) -> 0

Sheet SO2
A1: =+'Cover Page'!$B$29 -> Annual Performance Report 2022 | E1: =+'Cover Page'!$B$33 -> The Coventry And Solihull Waste Disposal Company Ltd
A3: Monitoring of Sulphur dioxide emissions | D3: Whole Installation | G3: See Notes in Cell Q3 | J3: =+A3 -> Monitoring of Sulphur dioxide emissions | N3: Per Combustion Line | Q3: Notes:
Q4: User to add logic to complete Whole installation, Table A5:G18. From the data in Per Combustion Line, Table J6:O79, subject to No. of lines installed
A5: mg/Nm3 | B5: 1/2 Hourly Reference Periods | E5: Daily Reference Periods
A6: =+'Cover Page'!C39 -> 2021 | B6: 1/2 hourly SO2 ELV | C6: Monthly 1/2 hourly mean | D6: Highest 1/2 hourly maximum | E6: Daily SO2 ELV | F6: Monthly daily mean | G6: Highest daily maximum | J6: =+A6 -> 2021 | K6: mg/Nm3 | L6: Monthly 1/2 hourly mean | M6: Monthly 1/2 hourly maximum | N6: Monthly daily mean | O6: Monthly daily maximum
A7: Jan | B7: 200 | C7: 28.05 | D7: 102.65 | E7: 50 | F7: 27.93 | G7: 45.07 | J7: A1 | K7: Jan | L7: 22.39 | M7: 79.91 | N7: 22.46 | O7: 41.75
A8: Feb | B8: 200 | C8: 35.61 | D8: 123.36 | E8: 50 | F8: 35.78 | G8: 44.06 | K8: Feb | L8: 29.11 | M8: 123.36 | N8: 29.32 | O8: 38.46
A9: Mar | B9: 200 | C9: 37.5 | D9: 166.01 | E9: 50 | F9: 37.86 | G9: 44.54 | K9: Mar | L9: 30.58 | M9: 115.24 | N9: 31.66 | O9: 42.19 | Q9: Whole Installation table A5:G18:
A10: Apr | B10: 200 | C10: 38.58 | D10: 108.92 | E10: 50 | F10: 38.43 | G10: 44.15 | K10: Apr | L10: 35.85 | M10: 78.49 | N10: 35.71 | O10: 41.74 | Q10: Mean: for 1/2 hourly and daily periods calculate mean of values across all operational combustion lines for the month
A11: May | B11: 200 | C11: 40.13 | D11: 129.39 | E11: 50 | F11: 40.16 | G11: 44.66 | K11: May | L11: 37.66 | M11: 99.24 | N11: 37.65 | O11: 42.84
A12: Jun | B12: 200 | C12: 39.48 | D12: 146.85 | E12: 50 | F12: 39.7 | G12: 44.46 | K12: Jun | L12: 37.96 | M12: 107.21 | N12: 38.09 | O12: 43.61
A13: Jul | B13: 200 | C13: 39.57 | D13: 141.29 | E13: 50 | F13: 39.82 | G13: 45.59 | K13: Jul | L13: 40.76 | M13: 132.81 | N13: 40.71 | O13: 44.4 | Q13: Maximum: for 1/2 hourly and daily periods use the highest value across all operational combustion lines for the month
A14: Aug | B14: 200 | C14: 40.76 | D14: 131.13 | E14: 50 | F14: 40.93 | G14: 47.97 | K14: Aug | L14: 43.32 | M14: 131.13 | N14: 43.34 | O14: 47.97
A15: Sep | B15: 200 | C15: 39.71 | D15: 124.1 | E15: 50 | F15: 39.98 | G15: 46.5 | K15: Sep | L15: 42.9 | M15: 124.1 | N15: 42.95 | O15: 46.5
A16: Oct | B16: 200 | C16: 35.11 | D16: 144.07 | E16: 50 | F16: 36.47 | G16: 43.94 | K16: Oct | L16: 41.06 | M16: 97.8 | N16: 42.61 | O16: 43.94
A17: Nov | B17: 200 | C17: 37.54 | D17: 118.26 | E17: 50 | F17: 37.7 | G17: 45.78 | K17: Nov | L17: 43.53 | M17: 118.26 | N17: 43.53 | O17: 45.78
A18: Dec | B18: 200 | C18: 38 | D18: 118.35 | E18: 50 | F18: 38.11 | G18: 45.98 | K18: Dec | L18: 42.72 | M18: 91.57 | N18: 42.94 | O18: 45.98
K19: Annual | L19: =AVERAGE(L7:L18) -> 37.32 | M19: =MAX(M7:M18) -> 132.81 | N19: =AVERAGE(N7:N18) -> 37.58083333 | O19: =MAX(O7:O18) -> 47.97
J21: =+A6 -> 2021 | K21: mg/Nm3 | L21: Monthly 1/2 hourly mean | M21: Monthly 1/2 hourly maximum | N21: Monthly daily mean | O21: Monthly daily maximum
J22: A2 | K22: Jan | L22: 41.38 | M22: 102.65 | N22: 41.42 | O22: 45.07
K23: Feb | L23: 40.55 | M23: 104.36 | N23: 40.78 | O23: 44.06
K24: Mar | L24: 41.04 | M24: 129.34 | N24: 40.96 | O24: 44.54
K25: Apr | L25: 40.13 | M25: 76.02 | N25: 40.05 | O25: 43.27
K26: May | L26: 41.84 | M26: 129.39 | N26: 41.85 | O26: 44.55
K27: Jun | L27: 41.58 | M27: 146.85 | N27: 41.58 | O27: 44.46
K28: Jul | L28: 40.22 | M28: 141.29 | N28: 40.63 | O28: 45.59
B29: Annual Performance Report 2022 | K29: Aug | L29: 40.74 | M29: 124.77 | N29: 41.35 | O29: 44.1
K30: Sep | L30: 39.29 | M30: 119.85 | N30: 39.84 | O30: 43.11
K31: Oct | L31: 33.82 | M31: 144.07 | N31: 34.45 | O31: 43.56
K32: Nov | L32: 37.45 | M32: 95.33 | N32: 37.45 | O32: 43.28
K33: Dec | L33: 38.52 | M33: 118.35 | N33: 38.79 | O33: 44.2
K34: Annual | L34: =AVERAGE(L22:L33) -> 39.71333333 | M34: =MAX(M22:M33) -> 146.85 | N34: =AVERAGE(N22:N33) -> 39.92916667 | O34: =MAX(O22:O33) -> 45.59
J36: =+A6 -> 2021 | K36: mg/Nm3 | L36: Monthly 1/2 hourly mean | M36: Monthly 1/2 hourly maximum | N36: Monthly daily mean | O36: Monthly daily maximum
J37: A3 | K37: Jan | L37: 23.93 | M37: 80.07 | N37: 24.3 | O37: 38.39
K38: Feb | L38: 37.15 | M38: 98.24 | N38: 37.31 | O38: 42.31
C39: 2021 | K39: Mar | L39: 38.95 | M39: 166.01 | N39: 38.91 | O39: 44.04
K40: Apr | L40: 40.27 | M40: 108.92 | N40: 40.3 | O40: 44.15
K41: May | L41: 41.16 | M41: 99.74 | N41: 41.33 | O41: 44.66
K42: Jun | L42: 38.76 | M42: 143.02 | N42: 39.18 | O42: 43.84
K43: Jul | L43: 37.96 | M43: 110.14 | N43: 38.38 | O43: 42.18
K44: Aug | L44: 38.22 | M44: 116.73 | N44: 38.21 | O44: 43.97
K45: Sep | L45: 36.81 | M45: 110.9 | N45: 37.17 | O45: 42.65
K46: Oct | L46: 33.76 | M46: 126.35 | N46: 36.03 | O46: 42.39
K47: Nov | L47: 30.68 | M47: 78 | N47: 31 | O47: 40.11
A48: Comments : | K48: Dec | L48: 29.98 | M48: 96.46 | N48: 29.95 | O48: 40.25
K49: Annual | L49: =AVERAGE(L37:L48) -> 35.63583333 | M49: =MAX(M37:M48) -> 166.01 | N49: =AVERAGE(N37:N48) -> 36.00583333 | O49: =MAX(O37:O48) -> 44.66
J51: =+A6 -> 2021 | K51: mg/Nm3 | L51: Monthly 1/2 hourly mean | M51: Monthly 1/2 hourly maximum | N51: Monthly daily mean | O51: Monthly daily maximum
J52: A4 | K52: Jan
C53: 2022-01-31 | K53: Feb
K54: Mar
K55: Apr
K56: May
K57: Jun
K58: Jul
K59: Aug
K60: Sep
K61: Oct
K62: Nov
K63: Dec
K64: Annual | L64: =AVERAGE(L52:L63) ->  | M64: =MAX(M52:M63) -> 0 | N64: =AVERAGE(N52:N63) ->  | O64: =MAX(O52:O63) -> 0
J66: =+A6 -> 2021 | K66: mg/Nm3 | L66: Monthly 1/2 hourly mean | M66: Monthly 1/2 hourly maximum | N66: Monthly daily mean | O66: Monthly daily maximum
J67: A5 | K67: Jan
K68: Feb
K69: Mar
K70: Apr
K71: May
K72: Jun
K73: Jul
K74: Aug
K75: Sep
K76: Oct
K77: Nov
K78: Dec
K79: Annual | L79: =AVERAGE(L67:L78) ->  | M79: =MAX(M67:M78) -> 0 | N79: =AVERAGE(N67:N78) ->  | O79: =MAX(O67:O78) -> 0

Sheet NOx
A1: =+'Cover Page'!$B$29 -> Annual Performance Report 2022 | E1: =+'Cover Page'!$B$33 -> The Coventry And Solihull Waste Disposal Company Ltd
A3: Monitoring of Oxides of Nitrogen emissions | D3: Whole Installation | G3: See Notes in Cell Q3 | J3: =+A3 -> Monitoring of Oxides of Nitrogen emissions | N3: Per Combustion Line | Q3: Notes:
Q4: User to add logic to complete Whole installation, Table A5:G18. From the data in Per Combustion Line, Table J6:O79, subject to No. of lines installed
A5: mg/Nm3 | B5: 1/2 Hourly Reference Periods | E5: Daily Reference Periods
A6: =+'Cover Page'!C39 -> 2021 | B6: 1/2 hourly NOx ELV | C6: Monthly 1/2 hourly mean | D6: Highest 1/2 hourly maximum | E6: Daily NOx ELV | F6: Monthly daily mean | G6: Highest daily maximum | J6: =+A6 -> 2021 | K6: mg/Nm3 | L6: Monthly 1/2 hourly mean | M6: Monthly 1/2 hourly maximum | N6: Monthly daily mean | O6: Monthly daily maximum
A7: Jan | B7: 400 | C7: 180.84 | D7: 308.53 | E7: 200 | F7: 181.06 | G7: 192.57 | J7: A1 | K7: Jan | L7: 187.2 | M7: 268.15 | N7: 187.09 | O7: 192.57
A8: Feb | B8: 400 | C8: 172.15 | D8: 258.44 | E8: 200 | F8: 172.4 | G8: 183.94 | K8: Feb | L8: 171.92 | M8: 241.97 | N8: 172.17 | O8: 181.17
A9: Mar | B9: 400 | C9: 182.55 | D9: 305.81 | E9: 200 | F9: 182.76 | G9: 196.07 | K9: Mar | L9: 184.56 | M9: 280.17 | N9: 185.79 | O9: 193.08 | Q9: Whole Installation table A5:G18:
A10: Apr | B10: 400 | C10: 177.8 | D10: 306.27 | E10: 200 | F10: 177.88 | G10: 193.35 | K10: Apr | L10: 180.12 | M10: 285 | N10: 180.04 | O10: 191.5 | Q10: Mean: for 1/2 hourly and daily periods calculate mean of values across all operational combustion lines for the month
A11: May | B11: 400 | C11: 181.23 | D11: 293.12 | E11: 200 | F11: 181.31 | G11: 195.34 | K11: May | L11: 183.55 | M11: 293.12 | N11: 183.56 | O11: 193.39
A12: Jun | B12: 400 | C12: 184.57 | D12: 310.72 | E12: 200 | F12: 184.76 | G12: 193.5 | K12: Jun | L12: 185.53 | M12: 278.63 | N12: 185.66 | O12: 193.5
A13: Jul | B13: 400 | C13: 184.93 | D13: 321.55 | E13: 200 | F13: 185.12 | G13: 195.08 | K13: Jul | L13: 184.68 | M13: 321.55 | N13: 184.52 | O13: 194.74 | Q13: Maximum: for 1/2 hourly and daily periods use the highest value across all operational combustion lines for the month
A14: Aug | B14: 400 | C14: 187.17 | D14: 274.19 | E14: 200 | F14: 187.28 | G14: 196.57 | K14: Aug | L14: 188.98 | M14: 217.59 | N14: 188.98 | O14: 196.57
A15: Sep | B15: 400 | C15: 184.52 | D15: 333.45 | E15: 200 | F15: 184.38 | G15: 192.56 | K15: Sep | L15: 187.47 | M15: 333.45 | N15: 187.25 | O15: 192.56
A16: Oct | B16: 400 | C16: 174.21 | D16: 293.79 | E16: 200 | F16: 175.36 | G16: 193.28 | K16: Oct | L16: 185.78 | M16: 293.79 | N16: 188.35 | O16: 193.28
A17: Nov | B17: 400 | C17: 176.27 | D17: 295.78 | E17: 200 | F17: 176.37 | G17: 197.42 | K17: Nov | L17: 189.55 | M17: 295.78 | N17: 189.57 | O17: 197.42
A18: Dec | B18: 400 | C18: 187.15 | D18: 284.79 | E18: 200 | F18: 187.21 | G18: 198.46 | K18: Dec | L18: 189.53 | M18: 245.53 | N18: 189.55 | O18: 197.1
K19: Annual | L19: =AVERAGE(L7:L18) -> 184.9058333 | M19: =MAX(M7:M18) -> 333.45 | N19: =AVERAGE(N7:N18) -> 185.2108333 | O19: =MAX(O7:O18) -> 197.42
J21: =+A6 -> 2021 | K21: mg/Nm3 | L21: Monthly 1/2 hourly mean | M21: Monthly 1/2 hourly maximum | N21: Monthly daily mean | O21: Monthly daily maximum
J22: A2 | K22: Jan | L22: 181.66 | M22: 308.53 | N22: 181.91 | O22: 191.37
K23: Feb | L23: 172.01 | M23: 258.44 | N23: 172.09 | O23: 179.14
K24: Mar | L24: 185.45 | M24: 305.81 | N24: 185.4 | O24: 196.07
K25: Apr | L25: 182.93 | M25: 306.27 | N25: 184.05 | O25: 193.35
K26: May | L26: 182.38 | M26: 284.72 | N26: 182.37 | O26: 191.97
K27: Jun | L27: 185.92 | M27: 310.72 | N27: 185.9 | O27: 192.47
K28: Jul | L28: 184.1 | M28: 307.31 | N28: 184.68 | O28: 191.67
B29: Annual Performance Report 2022 | K29: Aug | L29: 185.4 | M29: 263.45 | N29: 185.74 | O29: 193.18
K30: Sep | L30: 182.15 | M30: 283.78 | N30: 182.37 | O30: 192.37
K31: Oct | L31: 162.78 | M31: 243.44 | N31: 164.41 | O31: 179.33
K32: Nov | L32: 163.15 | M32: 253.79 | N32: 163.15 | O32: 191.77
K33: Dec | L33: 186.97 | M33: 239.89 | N33: 186.98 | O33: 198.46
K34: Annual | L34: =AVERAGE(L22:L33) -> 179.575 | M34: =MAX(M22:M33) -> 310.72 | N34: =AVERAGE(N22:N33) -> 179.9208333 | O34: =MAX(O22:O33) -> 198.46
J36: =+A6 -> 2021 | K36: mg/Nm3 | L36: Monthly 1/2 hourly mean | M36: Monthly 1/2 hourly maximum | N36: Monthly daily mean | O36: Monthly daily maximum
J37: A3 | K37: Jan | L37: 173.93 | M37: 270.66 | N37: 174.24 | O37: 190.09
K38: Feb | L38: 172.53 | M38: 240.39 | N38: 172.95 | O38: 183.94
C39: 2021 | K39: Mar | L39: 178.46 | M39: 279.86 | N39: 178.36 | O39: 191.43
K40: Apr | L40: 172.01 | M40: 273.11 | N40: 172.02 | O40: 189.71
K41: May | L41: 176.48 | M41: 280.01 | N41: 176.65 | O41: 195.34
K42: Jun | L42: 181.77 | M42: 267.36 | N42: 182.08 | O42: 193.27
K43: Jul | L43: 185.81 | M43: 310.61 | N43: 186.01 | O43: 195.08
K44: Aug | L44: 187.02 | M44: 274.19 | N44: 187.03 | O44: 194.75
K45: Sep | L45: 183.77 | M45: 296.51 | N45: 183.52 | O45: 190.57
K46: Oct | L46: 180.78 | M46: 257.04 | N46: 181.12 | O46: 189.2
K47: Nov | L47: 176.18 | M47: 263.8 | N47: 176.4 | O47: 189.14
A48: Comments : | K48: Dec | L48: 183.77 | M48: 284.79 | N48: 184.12 | O48: 193
K49: Annual | L49: =AVERAGE(L37:L48) -> 179.3758333 | M49: =MAX(M37:M48) -> 310.61 | N49: =AVERAGE(N37:N48) -> 179.5416667 | O49: =MAX(O37:O48) -> 195.34
J51: =+A6 -> 2021 | K51: mg/Nm3 | L51: Monthly 1/2 hourly mean | M51: Monthly 1/2 hourly maximum | N51: Monthly daily mean | O51: Monthly daily maximum
J52: A4 | K52: Jan
C53: 2022-01-31 | K53: Feb
K54: Mar
K55: Apr
K56: May
K57: Jun
K58: Jul
K59: Aug
K60: Sep
K61: Oct
K62: Nov
K63: Dec
K64: Annual | L64: =AVERAGE(L52:L63) ->  | M64: =MAX(M52:M63) -> 0 | N64: =AVERAGE(N52:N63) ->  | O64: =MAX(O52:O63) -> 0
J66: =+A6 -> 2021 | K66: mg/Nm3 | L66: Monthly 1/2 hourly mean | M66: Monthly 1/2 hourly maximum | N66: Monthly daily mean | O66: Monthly daily maximum
J67: A5 | K67: Jan
K68: Feb
K69: Mar
K70: Apr
K71: May
K72: Jun
K73: Jul
K74: Aug
K75: Sep
K76: Oct
K77: Nov
K78: Dec
K79: Annual | L79: =AVERAGE(L67:L78) ->  | M79: =MAX(M67:M78) -> 0 | N79: =AVERAGE(N67:N78) ->  | O79: =MAX(O67:O78) -> 0

Sheet TOC
A1: =+'Cover Page'!$B$29 -> Annual Performance Report 2022 | E1: =+'Cover Page'!$B$33 -> The Coventry And Solihull Waste Disposal Company Ltd
A3: Monitoring of Total organic carbon emissions | D3: Whole Installation | G3: See Notes in Cell Q3 | J3: =+A3 -> Monitoring of Total organic carbon emissions | N3: Per Combustion Line | Q3: Notes:
Q4: User to add logic to complete Whole installation, Table A5:G18. From the data in Per Combustion Line, Table J6:O79, subject to No. of lines installed
A5: mg/Nm3 | B5: 1/2 Hourly Reference Periods | E5: Daily Reference Periods
A6: =+'Cover Page'!C39 -> 2021 | B6: 1/2 hourly TOC ELV | C6: Monthly 1/2 hourly mean | D6: Highest 1/2 hourly maximum | E6: Daily TOC ELV | F6: Monthly daily mean | G6: Highest daily maximum | J6: =+A6 -> 2021 | K6: mg/Nm3 | L6: Monthly 1/2 hourly mean | M6: Monthly 1/2 hourly maximum | N6: Monthly daily mean | O6: Monthly daily maximum
A7: Jan | B7: 20 | C7: 0.29 | D7: 7.01 | E7: 10 | F7: 0.3 | G7: 1.22 | J7: A1 | K7: Jan | L7: 0.5 | M7: 3.01 | N7: 0.5 | O7: 1.22
A8: Feb | B8: 20 | C8: 0.95 | D8: 7.89 | E8: 10 | F8: 0.95 | G8: 4.09 | K8: Feb | L8: 1.42 | M8: 5.37 | N8: 1.41 | O8: 4.09
A9: Mar | B9: 20 | C9: 0.76 | D9: 4.52 | E9: 10 | F9: 0.76 | G9: 1.17 | K9: Mar | L9: 0.78 | M9: 2.86 | N9: 0.8 | O9: 0.96 | Q9: Whole Installation table A5:G18:
A10: Apr | B10: 20 | C10: 0.89 | D10: 4.75 | E10: 10 | F10: 0.88 | G10: 1.43 | K10: Apr | L10: 1 | M10: 2.96 | N10: 1 | O10: 1.28 | Q10: Mean: for 1/2 hourly and daily periods calculate mean of values across all operational combustion lines for the month
A11: May | B11: 20 | C11: 0.92 | D11: 3.46 | E11: 10 | F11: 0.92 | G11: 1.25 | K11: May | L11: 1.06 | M11: 3.46 | N11: 1.06 | O11: 1.25
A12: Jun | B12: 20 | C12: 0.43 | D12: 4.79 | E12: 10 | F12: 0.41 | G12: 1.7 | K12: Jun | L12: 0.63 | M12: 3.29 | N12: 0.63 | O12: 1.19
A13: Jul | B13: 20 | C13: 0.57 | D13: 6.43 | E13: 10 | F13: 0.57 | G13: 1.48 | K13: Jul | L13: 0.51 | M13: 2.53 | N13: 0.52 | O13: 0.93 | Q13: Maximum: for 1/2 hourly and daily periods use the highest value across all operational combustion lines for the month
A14: Aug | B14: 20 | C14: 0.55 | D14: 4.79 | E14: 10 | F14: 0.55 | G14: 1.41 | K14: Aug | L14: 0.41 | M14: 1.73 | N14: 0.41 | O14: 1.2
A15: Sep | B15: 20 | C15: 0.31 | D15: 5.35 | E15: 10 | F15: 0.31 | G15: 0.7 | K15: Sep | L15: 0.41 | M15: 2.41 | N15: 0.41 | O15: 0.64
A16: Oct | B16: 20 | C16: 0.48 | D16: 3.62 | E16: 10 | F16: 0.48 | G16: 0.77 | K16: Oct | L16: 0.48 | M16: 2.43 | N16: 0.5 | O16: 0.71
A17: Nov | B17: 20 | C17: 0.56 | D17: 3.7 | E17: 10 | F17: 0.56 | G17: 1.53 | K17: Nov | L17: 0.47 | M17: 1.45 | N17: 0.47 | O17: 0.55
A18: Dec | B18: 20 | C18: 0.5 | D18: 10.22 | E18: 10 | F18: 0.5 | G18: 1.04 | K18: Dec | L18: 0.66 | M18: 4.64 | N18: 0.66 | O18: 1.04
K19: Annual | L19: =AVERAGE(L7:L18) -> 0.6941666667 | M19: =MAX(M7:M18) -> 5.37 | N19: =AVERAGE(N7:N18) -> 0.6975 | O19: =MAX(O7:O18) -> 4.09
J21: =+A6 -> 2021 | K21: mg/Nm3 | L21: Monthly 1/2 hourly mean | M21: Monthly 1/2 hourly maximum | N21: Monthly daily mean | O21: Monthly daily maximum
J22: A2 | K22: Jan | L22: 0.23 | M22: 2.5 | N22: 0.25 | O22: 0.96
K23: Feb | L23: 0.96 | M23: 3.03 | N23: 0.96 | O23: 1.24
K24: Mar | L24: 0.96 | M24: 4.52 | N24: 0.96 | O24: 1.17
K25: Apr | L25: 0.98 | M25: 4.65 | N25: 0.99 | O25: 1.43
K26: May | L26: 0.95 | M26: 2.9 | N26: 0.95 | O26: 1.25
K27: Jun | L27: -0.08 | M27: 4.39 | N27: -0.08 | O27: 0.68
K28: Jul | L28: 0.05 | M28: 1.72 | N28: 0.05 | O28: 0.41
B29: Annual Performance Report 2022 | K29: Aug | L29: 0.33 | M29: 3.38 | N29: 0.33 | O29: 0.74
K30: Sep | L30: 0.22 | M30: 5.35 | N30: 0.22 | O30: 0.7
K31: Oct | L31: 0.47 | M31: 3.62 | N31: 0.47 | O31: 0.77
K32: Nov | L32: 0.64 | M32: 3.7 | N32: 0.64 | O32: 1.53
K33: Dec | L33: 0.31 | M33: 2.76 | N33: 0.31 | O33: 1.02
K34: Annual | L34: =AVERAGE(L22:L33) -> 0.5016666667 | M34: =MAX(M22:M33) -> 5.35 | N34: =AVERAGE(N22:N33) -> 0.5041666667 | O34: =MAX(O22:O33) -> 1.53
J36: =+A6 -> 2021 | K36: mg/Nm3 | L36: Monthly 1/2 hourly mean | M36: Monthly 1/2 hourly maximum | N36: Monthly daily mean | O36: Monthly daily maximum
J37: A3 | K37: Jan | L37: 0.12 | M37: 7.01 | N37: 0.13 | O37: 0.71
K38: Feb | L38: 0.47 | M38: 7.89 | N38: 0.46 | O38: 0.7
C39: 2021 | K39: Mar | L39: 0.56 | M39: 4.05 | N39: 0.56 | O39: 0.9
K40: Apr | L40: 0.7 | M40: 4.75 | N40: 0.7 | O40: 1.35
K41: May | L41: 0.68 | M41: 1.78 | N41: 0.68 | O41: 1.02
K42: Jun | L42: 0.8 | M42: 4.79 | N42: 0.79 | O42: 1.7
K43: Jul | L43: 1.02 | M43: 6.43 | N43: 1.02 | O43: 1.48
K44: Aug | L44: 0.89 | M44: 4.79 | N44: 0.89 | O44: 1.41
K45: Sep | L45: 0.31 | M45: 0.99 | N45: 0.31 | O45: 0.54
K46: Oct | L46: 0.48 | M46: 1.4 | N46: 0.48 | O46: 0.62
K47: Nov | L47: 0.57 | M47: 3.35 | N47: 0.57 | O47: 0.74
A48: Comments : | K48: Dec | L48: 0.55 | M48: 10.22 | N48: 0.56 | O48: 0.98
K49: Annual | L49: =AVERAGE(L37:L48) -> 0.5958333333 | M49: =MAX(M37:M48) -> 10.22 | N49: =AVERAGE(N37:N48) -> 0.5958333333 | O49: =MAX(O37:O48) -> 1.7
J51: =+A6 -> 2021 | K51: mg/Nm3 | L51: Monthly 1/2 hourly mean | M51: Monthly 1/2 hourly maximum | N51: Monthly daily mean | O51: Monthly daily maximum
J52: A4 | K52: Jan
C53: 2022-01-31 | K53: Feb
K54: Mar
K55: Apr
K56: May
K57: Jun
K58: Jul
K59: Aug
K60: Sep
K61: Oct
K62: Nov
K63: Dec
K64: Annual | L64: =AVERAGE(L52:L63) ->  | M64: =MAX(M52:M63) -> 0 | N64: =AVERAGE(N52:N63) ->  | O64: =MAX(O52:O63) -> 0
J66: =+A6 -> 2021 | K66: mg/Nm3 | L66: Monthly 1/2 hourly mean | M66: Monthly 1/2 hourly maximum | N66: Monthly daily mean | O66: Monthly daily maximum
J67: A5 | K67: Jan
K68: Feb
K69: Mar
K70: Apr
K71: May
K72: Jun
K73: Jul
K74: Aug
K75: Sep
K76: Oct
K77: Nov
K78: Dec
K79: Annual | L79: =AVERAGE(L67:L78) ->  | M79: =MAX(M67:M78) -> 0 | N79: =AVERAGE(N67:N78) ->  | O79: =MAX(O67:O78) -> 0

Sheet Particulates
A1: =+'Cover Page'!$B$29 -> Annual Performance Report 2022 | E1: =+'Cover Page'!$B$33 -> The Coventry And Solihull Waste Disposal Company Ltd
A3: Monitoring of Particulate matter emissions | D3: Whole Installation | G3: See Notes in Cell Q3 | J3: =+A3 -> Monitoring of Particulate matter emissions | N3: Per Combustion Line | Q3: Notes:
Q4: User to add logic to complete Whole installation, Table A5:G18. From the data in Per Combustion Line, Table J6:O79, subject to No. of lines installed
A5: mg/Nm3 | B5: 1/2 Hourly Reference Periods | E5: Daily Reference Periods
A6: =+'Cover Page'!C39 -> 2021 | B6: 1/2 hourly PM ELV | C6: Monthly 1/2 hourly mean | D6: Highest 1/2 hourly maximum | E6: Daily PM ELV | F6: Monthly daily mean | G6: Highest daily maximum | J6: =+A6 -> 2021 | K6: mg/Nm3 | L6: Monthly 1/2 hourly mean | M6: Monthly 1/2 hourly maximum | N6: Monthly daily mean | O6: Monthly daily maximum
A7: Jan | B7: 30 | C7: 0.5 | D7: 1.8 | E7: 10 | F7: 0.5 | G7: 0.92 | J7: A1 | K7: Jan | L7: 0.48 | M7: 1.18 | N7: 0.48 | O7: 0.52
A8: Feb | B8: 30 | C8: 0.44 | D8: 0.68 | E8: 10 | F8: 0.44 | G8: 0.54 | K8: Feb | L8: 0.46 | M8: 0.64 | N8: 0.46 | O8: 0.48
A9: Mar | B9: 30 | C9: 0.44 | D9: 8.78 | E9: 10 | F9: 0.43 | G9: 0.53 | K9: Mar | L9: 0.48 | M9: 8.78 | N9: 0.45 | O9: 0.46 | Q9: Whole Installation table A5:G18:
A10: Apr | B10: 30 | C10: 0.47 | D10: 26.39 | E10: 10 | F10: 0.46 | G10: 1.98 | K10: Apr | L10: 0.47 | M10: 1.81 | N10: 0.47 | O10: 0.49 | Q10: Mean: for 1/2 hourly and daily periods calculate mean of values across all operational combustion lines for the month
A11: May | B11: 30 | C11: 0.45 | D11: 1.02 | E11: 10 | F11: 0.45 | G11: 0.53 | K11: May | L11: 0.46 | M11: 0.61 | N11: 0.46 | O11: 0.49
A12: Jun | B12: 30 | C12: 0.45 | D12: 2.11 | E12: 10 | F12: 0.46 | G12: 0.54 | K12: Jun | L12: 0.47 | M12: 1.1 | N12: 0.47 | O12: 0.52
A13: Jul | B13: 30 | C13: 0.41 | D13: 1.66 | E13: 10 | F13: 0.41 | G13: 0.55 | K13: Jul | L13: 0.41 | M13: 0.72 | N13: 0.41 | O13: 0.45 | Q13: Maximum: for 1/2 hourly and daily periods use the highest value across all operational combustion lines for the month
A14: Aug | B14: 30 | C14: 0.41 | D14: 3.91 | E14: 10 | F14: 0.41 | G14: 0.59 | K14: Aug | L14: 0.42 | M14: 0.85 | N14: 0.42 | O14: 0.59
A15: Sep | B15: 30 | C15: 0.61 | D15: 5 | E15: 10 | F15: 0.61 | G15: 2.72 | K15: Sep | L15: 0.44 | M15: 0.82 | N15: 0.44 | O15: 0.58
A16: Oct | B16: 30 | C16: 0.9 | D16: 6.45 | E16: 10 | F16: 0.98 | G16: 2.99 | K16: Oct | L16: 0.43 | M16: 1.1 | N16: 0.42 | O16: 0.47
A17: Nov | B17: 30 | C17: 1.14 | D17: 6.15 | E17: 10 | F17: 1.14 | G17: 4.33 | K17: Nov | L17: 0.5 | M17: 1.19 | N17: 0.5 | O17: 0.64
A18: Dec | B18: 30 | C18: 1.14 | D18: 5.56 | E18: 10 | F18: 1.15 | G18: 4.14 | K18: Dec | L18: 0.66 | M18: 1.24 | N18: 0.66 | O18: 0.72
K19: Annual | L19: =AVERAGE(L7:L18) -> 0.4733333333 | M19: =MAX(M7:M18) -> 8.78 | N19: =AVERAGE(N7:N18) -> 0.47 | O19: =MAX(O7:O18) -> 0.72
J21: =+A6 -> 2021 | K21: mg/Nm3 | L21: Monthly 1/2 hourly mean | M21: Monthly 1/2 hourly maximum | N21: Monthly daily mean | O21: Monthly daily maximum
J22: A2 | K22: Jan | L22: 0.79 | M22: 1.8 | N22: 0.78 | O22: 0.92
K23: Feb | L23: 0.5 | M23: 0.68 | N23: 0.5 | O23: 0.54
K24: Mar | L24: 0.5 | M24: 0.79 | N24: 0.5 | O24: 0.53
K25: Apr | L25: 0.49 | M25: 1.87 | N25: 0.48 | O25: 0.53
K26: May | L26: 0.5 | M26: 1.02 | N26: 0.5 | O26: 0.53
K27: Jun | L27: 0.51 | M27: 0.81 | N27: 0.51 | O27: 0.54
K28: Jul | L28: 0.44 | M28: 1.66 | N28: 0.43 | O28: 0.55
B29: Annual Performance Report 2022 | K29: Aug | L29: 0.41 | M29: 3.91 | N29: 0.39 | O29: 0.42
K30: Sep | L30: 0.39 | M30: 2.71 | N30: 0.38 | O30: 0.45
K31: Oct | L31: 0.33 | M31: 2.22 | N31: 0.32 | O31: 0.37
K32: Nov | L32: 0.33 | M32: 1.27 | N32: 0.33 | O32: 0.36
K33: Dec | L33: 0.4 | M33: 0.8 | N33: 0.4 | O33: 0.56
K34: Annual | L34: =AVERAGE(L22:L33) -> 0.4658333333 | M34: =MAX(M22:M33) -> 3.91 | N34: =AVERAGE(N22:N33) -> 0.46 | O34: =MAX(O22:O33) -> 0.92
J36: =+A6 -> 2021 | K36: mg/Nm3 | L36: Monthly 1/2 hourly mean | M36: Monthly 1/2 hourly maximum | N36: Monthly daily mean | O36: Monthly daily maximum
J37: A3 | K37: Jan | L37: 0.32 | M37: 1 | N37: 0.32 | O37: 0.46
K38: Feb | L38: 0.37 | M38: 0.63 | N38: 0.37 | O38: 0.44
C39: 2021 | K39: Mar | L39: 0.36 | M39: 0.83 | N39: 0.36 | O39: 0.39
K40: Apr | L40: 0.46 | M40: 26.39 | N40: 0.43 | O40: 1.98
K41: May | L41: 0.36 | M41: 0.98 | N41: 0.36 | O41: 0.47
K42: Jun | L42: 0.37 | M42: 2.11 | N42: 0.37 | O42: 0.42
K43: Jul | L43: 0.39 | M43: 0.65 | N43: 0.39 | O43: 0.41
K44: Aug | L44: 0.41 | M44: 1.47 | N44: 0.41 | O44: 0.56
K45: Sep | L45: 1 | M45: 5 | N45: 1.01 | O45: 2.72
K46: Oct | L46: 1.7 | M46: 6.45 | N46: 1.86 | O46: 2.99
K47: Nov | L47: 2.85 | M47: 6.15 | N47: 2.9 | O47: 4.33
A48: Comments : | K48: Dec | L48: 3 | M48: 5.56 | N48: 3.01 | O48: 4.14
K49: Annual | L49: =AVERAGE(L37:L48) -> 0.9658333333 | M49: =MAX(M37:M48) -> 26.39 | N49: =AVERAGE(N37:N48) -> 0.9825 | O49: =MAX(O37:O48) -> 4.33
J51: =+A6 -> 2021 | K51: mg/Nm3 | L51: Monthly 1/2 hourly mean | M51: Monthly 1/2 hourly maximum | N51: Monthly daily mean | O51: Monthly daily maximum
J52: A4 | K52: Jan
C53: 2022-01-31 | K53: Feb
K54: Mar
K55: Apr
K56: May
K57: Jun
K58: Jul
K59: Aug
K60: Sep
K61: Oct
K62: Nov
K63: Dec
K64: Annual | L64: =AVERAGE(L52:L63) ->  | M64: =MAX(M52:M63) -> 0 | N64: =AVERAGE(N52:N63) ->  | O64: =MAX(O52:O63) -> 0
J66: =+A6 -> 2021 | K66: mg/Nm3 | L66: Monthly 1/2 hourly mean | M66: Monthly 1/2 hourly maximum | N66: Monthly daily mean | O66: Monthly daily maximum
J67: A5 | K67: Jan
K68: Feb
K69: Mar
K70: Apr
K71: May
K72: Jun
K73: Jul
K74: Aug
K75: Sep
K76: Oct
K77: Nov
K78: Dec
K79: Annual | L79: =AVERAGE(L67:L78) ->  | M79: =MAX(M67:M78) -> 0 | N79: =AVERAGE(N67:N78) ->  | O79: =MAX(O67:O78) -> 0

Sheet CO 0.5hourly
A1: =+'Cover Page'!$B$29 -> Annual Performance Report 2022 | E1: =+'Cover Page'!$B$33 -> The Coventry And Solihull Waste Disposal Company Ltd
A3: Monitoring of Carbon Monoxide (half hourly) | D3: Whole Installation | G3: See Notes in Cell Q3 | J3: =+A3 -> Monitoring of Carbon Monoxide (half hourly) | N3: Per Combustion Line | Q3: Notes:
Q4: User to add logic to complete Whole installation, Table A5:G18. From the data in Per Combustion Line, Table J6:O79, subject to No. of lines installed
A5: mg/Nm3 | B5: 1/2 Hourly Reference Periods | E5: Daily Reference Periods
A6: =+'Cover Page'!C39 -> 2021 | B6: 1/2 hourly CO ELV | C6: Monthly 1/2 hourly mean | D6: Highest 1/2 hourly maximum | E6: Daily CO ELV | F6: Monthly daily mean | G6: Highest daily maximum | J6: =+A6 -> 2021 | K6: mg/Nm3 | L6: Monthly 1/2 hourly mean | M6: Monthly 1/2 hourly maximum | N6: Monthly daily mean | O6: Monthly daily maximum
A7: Jan | B7: 100 | E7: 50 | J7: A1 | K7: Jan
A8: Feb | B8: =+B7 -> 100 | E8: =+E7 -> 50 | K8: Feb
A9: Mar | B9: =+B8 -> 100 | E9: =+E8 -> 50 | K9: Mar | Q9: Whole Installation table A5:G18:
A10: Apr | B10: 100 | E10: 50 | K10: Apr | Q10: Mean: for 1/2 hourly and daily periods calculate mean of values across all operational combustion lines for the month
A11: May | B11: 100 | E11: 50 | K11: May
A12: Jun | B12: 100 | E12: 50 | K12: Jun
A13: Jul | B13: 100 | E13: 50 | K13: Jul | Q13: Maximum: for 1/2 hourly and daily periods use the highest value across all operational combustion lines for the month
A14: Aug | B14: 100 | E14: 50 | K14: Aug
A15: Sep | B15: 100 | E15: 50 | K15: Sep
A16: Oct | B16: 100 | E16: 50 | K16: Oct
A17: Nov | B17: 100 | E17: 50 | K17: Nov
A18: Dec | B18: 100 | E18: 50 | K18: Dec
K19: Annual | L19: =AVERAGE(L7:L18) ->  | M19: =MAX(M7:M18) -> 0 | N19: =AVERAGE(N7:N18) ->  | O19: =MAX(O7:O18) -> 0
J21: =+A6 -> 2021 | K21: mg/Nm3 | L21: Monthly 1/2 hourly mean | M21: Monthly 1/2 hourly maximum | N21: Monthly daily mean | O21: Monthly daily maximum
J22: A2 | K22: Jan
K23: Feb
K24: Mar
K25: Apr
K26: May
K27: Jun
K28: Jul
B29: Annual Performance Report 2022 | K29: Aug
K30: Sep
K31: Oct
K32: Nov
K33: Dec
K34: Annual | L34: =AVERAGE(L22:L33) ->  | M34: =MAX(M22:M33) -> 0 | N34: =AVERAGE(N22:N33) ->  | O34: =MAX(O22:O33) -> 0
J36: =+A6 -> 2021 | K36: mg/Nm3 | L36: Monthly 1/2 hourly mean | M36: Monthly 1/2 hourly maximum | N36: Monthly daily mean | O36: Monthly daily maximum
J37: A3 | K37: Jan
K38: Feb
C39: 2021 | K39: Mar
K40: Apr
K41: May
K42: Jun
K43: Jul
K44: Aug
K45: Sep
K46: Oct
K47: Nov
A48: Comments : | K48: Dec
K49: Annual | L49: =AVERAGE(L37:L48) ->  | M49: =MAX(M37:M48) -> 0 | N49: =AVERAGE(N37:N48) ->  | O49: =MAX(O37:O48) -> 0
J51: =+A6 -> 2021 | K51: mg/Nm3 | L51: Monthly 1/2 hourly mean | M51: Monthly 1/2 hourly maximum | N51: Monthly daily mean | O51: Monthly daily maximum
J52: A4 | K52: Jan
C53: 2022-01-31 | K53: Feb
K54: Mar
K55: Apr
K56: May
K57: Jun
K58: Jul
K59: Aug
K60: Sep
K61: Oct
K62: Nov
K63: Dec
K64: Annual | L64: =AVERAGE(L52:L63) ->  | M64: =MAX(M52:M63) -> 0 | N64: =AVERAGE(N52:N63) ->  | O64: =MAX(O52:O63) -> 0
J66: =+A6 -> 2021 | K66: mg/Nm3 | L66: Monthly 1/2 hourly mean | M66: Monthly 1/2 hourly maximum | N66: Monthly daily mean | O66: Monthly daily maximum
J67: A5 | K67: Jan
K68: Feb
K69: Mar
K70: Apr
K71: May
K72: Jun
K73: Jul
K74: Aug
K75: Sep
K76: Oct
K77: Nov
K78: Dec
K79: Annual | L79: =AVERAGE(L67:L78) ->  | M79: =MAX(M67:M78) -> 0 | N79: =AVERAGE(N67:N78) ->  | O79: =MAX(O67:O78) -> 0

Sheet CO 95% 10 min
A1: =+'Cover Page'!$B$29 -> Annual Performance Report 2022 | E1: =+'Cover Page'!$B$33 -> The Coventry And Solihull Waste Disposal Company Ltd
A3: Monitoring of Carbon Monoxide (10-minute avg) | E3: Whole Installation | H3: See Notes in Cell S3 | J3: =+A3 -> Monitoring of Carbon Monoxide (10-minute avg) | O3: Per Combustion Line | Q3: Notes: | S3: Notes:
S4: User to add logic to complete Whole installation, Table A5:H18. From the data in Per Combustion Line, Table K6:Q79, subject to No. of lines installed
A5: mg/Nm3 | B5: 10-minute Reference Periods | F5: Daily Reference Periods
A6: =+'Cover Page'!C39 -> 2021 | B6: 95%ile 10-min avg CO ELV | C6: 95%ile 10-min avg maximum | D6: Monthly CO 10-min avg mean | E6: 10-min avg maximum | F6: Daily CO ELV | G6: Monthly daily mean | H6: Highest daily maximum | K6: =+A6 -> 2021 | L6: mg/Nm3 | M6: 95%ile 10-min avg maximum | N6: Monthly CO 10-min avg mean | O6: 10-min avg maximum | P6: Monthly daily mean | Q6: Monthly daily maximum
A7: Jan | B7: 150 | C7: 77.3 | D7: 24.8 | E7: 428.23 | F7: 50 | G7: 24.88 | H7: 45.63 | K7: A1 | L7: Jan | M7: 75.34 | N7: 32.56 | O7: 188.61 | P7: 32.52 | Q7: 43.85
A8: Feb | B8: 150 | C8: 46.16 | D8: 15.45 | E8: 351.57 | F8: 50 | G8: 15.68 | H8: 28.2 | L8: Feb | M8: 46.16 | N8: 23.64 | O8: 154.44 | P8: 23.8 | Q8: 28.2
A9: Mar | B9: 150 | C9: 47.68 | D9: 12.65 | E9: 593.61 | F9: 50 | G9: 12.58 | H9: 29.7 | L9: Mar | M9: 47.68 | N9: 21.1 | O9: 384.46 | P9: 21.47 | Q9: 29.7 | S9: Whole Installation table A5:H18:
A10: Apr | B10: 150 | C10: 45.16 | D10: 9.45 | E10: 516.23 | F10: 50 | G10: 9.48 | H10: 20.32 | L10: Apr | M10: 40.43 | N10: 14.44 | O10: 127.58 | P10: 14.42 | Q10: 20.32 | S10: Mean: for 10-min and daily periods use average of all operational combustion lines.
A11: May | B11: 150 | C11: 76.02 | D11: 11.28 | E11: 399.57 | F11: 50 | G11: 11.34 | H11: 20.92 | L11: May | M11: 76.02 | N11: 15.26 | O11: 237.92 | P11: 15.26 | Q11: 20.19
A12: Jun | B12: 150 | C12: 38.29 | D12: 10.33 | E12: 524.08 | F12: 50 | G12: 10.35 | H12: 20.43 | L12: Jun | M12: 38.29 | N12: 15.66 | O12: 294.41 | P12: 15.7 | Q12: 20.43
A13: Jul | B13: 150 | C13: 89.97 | D13: 20.6 | E13: 401.86 | F13: 50 | G13: 20.68 | H13: 39.59 | L13: Jul | M13: 57.09 | N13: 27.87 | O13: 335.88 | P13: 27.77 | Q13: 39.59 | S13: Maximum: for 10-min and daily periods use the highest of all operational combustion lines in any month.
A14: Aug | B14: 150 | C14: 57.48 | D14: 24.29 | E14: 244.17 | F14: 50 | G14: 24.24 | H14: 37.02 | L14: Aug | M14: 57.48 | N14: 30.79 | O14: 244.17 | P14: 30.71 | Q14: 37.02
A15: Sep | B15: 150 | C15: 64.25 | D15: 23.61 | E15: 706.2 | F15: 50 | G15: 23.51 | H15: 45.61 | L15: Sep | M15: 64.25 | N15: 30.51 | O15: 312.3 | P15: 30.66 | Q15: 45.61
A16: Oct | B16: 150 | C16: 65.63 | D16: 21.85 | E16: 275.4 | F16: 50 | G16: 22.22 | H16: 33.68 | L16: Oct | M16: 65.63 | N16: 26.52 | O16: 269.81 | P16: 27.03 | Q16: 33.68
A17: Nov | B17: 150 | C17: 64.89 | D17: 27.85 | E17: 305.72 | F17: 50 | G17: 27.83 | H17: 44.04 | L17: Nov | M17: 64.89 | N17: 33.71 | O17: 256.77 | P17: 33.71 | Q17: 44.04
A18: Dec | B18: 150 | C18: 63.03 | D18: 28.36 | E18: 488.72 | F18: 50 | G18: 28.16 | H18: 40.84 | L18: Dec | M18: 61.72 | N18: 34.56 | O18: 488.72 | P18: 34.52 | Q18: 40.84
L19: Annual | M19: =MAX(M7:M18) -> 76.02 | N19: =AVERAGE(N7:N18) -> 25.55166667 | O19: =MAX(O7:O18) -> 488.72 | P19: =AVERAGE(P7:P18) -> 25.63083333 | Q19: =MAX(Q7:Q18) -> 45.61
K21: =+A6 -> 2021 | L21: mg/Nm3 | M21: 95%ile 10-min avg maximum | N21: Monthly CO 10-min avg mean | O21: 10-min avg maximum | P21: Monthly daily mean | Q21: Monthly daily maximum
K22: A2 | L22: Jan | M22: 77.3 | N22: 28.8 | O22: 428.23 | P22: 28.92 | Q22: 45.63
L23: Feb | M23: 38.77 | N23: 13.77 | O23: 182.64 | P23: 13.9 | Q23: 19.44
L24: Mar | M24: 41.76 | N24: 11.24 | O24: 151.12 | P24: 11.27 | Q24: 16.67
L25: Apr | M25: 27.73 | N25: 8.65 | O25: 204.22 | P25: 8.38 | Q25: 13.41
L26: May | M26: 41.13 | N26: 12.39 | O26: 84.7 | P26: 12.39 | Q26: 20.92
L27: Jun | M27: 35.93 | N27: 11 | O27: 147.39 | P27: 10.99 | Q27: 19.69
L28: Jul | M28: 58.62 | N28: 18.05 | O28: 175.76 | P28: 18.12 | Q28: 23.03
B29: Annual Performance Report 2022 | L29: Aug | M29: 45.7 | N29: 21.51 | O29: 174.75 | P29: 21.37 | Q29: 29.97
L30: Sep | M30: 58.7 | N30: 20.91 | O30: 241.01 | P30: 20.89 | Q30: 24.73
L31: Oct | M31: 49.8 | N31: 19.67 | O31: 181.49 | P31: 20.26 | Q31: 26.24
L32: Nov | M32: 45.66 | N32: 21.94 | O32: 164.23 | P32: 21.94 | Q32: 26.59
L33: Dec | M33: 47.89 | N33: 22.91 | O33: 356.25 | P33: 22.87 | Q33: 28.38
L34: Annual | M34: =MAX(M22:M33) -> 77.3 | N34: =AVERAGE(N22:N33) -> 17.57 | O34: =MAX(O22:O33) -> 428.23 | P34: =AVERAGE(P22:P33) -> 17.60833333 | Q34: =MAX(Q22:Q33) -> 45.63
K36: =+A6 -> 2021 | L36: mg/Nm3 | M36: 95%ile 10-min avg maximum | N36: Monthly CO 10-min avg mean | O36: 10-min avg maximum | P36: Monthly daily mean | Q36: Monthly daily maximum
K37: A3 | L37: Jan | M37: 46.63 | N37: 14.15 | O37: 273 | P37: 14.2 | Q37: 23.68
L38: Feb | M38: 37.37 | N38: 8.96 | O38: 351.57 | P38: 9.1 | Q38: 20.1
C39: 2021 | L39: Mar | M39: 40.34 | N39: 8.18 | O39: 593.61 | P39: 8.18 | Q39: 15.53
L40: Apr | M40: 45.16 | N40: 5 | O40: 516.23 | P40: 5.06 | Q40: 16.62
L41: May | M41: 28.25 | N41: 4.32 | O41: 399.57 | P41: 4.33 | Q41: 12.25
L42: Jun | M42: 26.54 | N42: 3.06 | O42: 524.08 | P42: 2.68 | Q42: 12.45
L43: Jul | M43: 89.97 | N43: 15.76 | O43: 401.86 | P43: 16.02 | Q43: 34.87
L44: Aug | M44: 42.88 | N44: 20.41 | O44: 214.05 | P44: 20.36 | Q44: 27.23
L45: Sep | M45: 46.24 | N45: 19.08 | O45: 706.2 | P45: 18.99 | Q45: 27.8
L46: Oct | M46: 44.9 | N46: 21.96 | O46: 275.4 | P46: 21.78 | Q46: 26.43
L47: Nov | M47: 61.6 | N47: 27.95 | O47: 305.72 | P47: 27.84 | Q47: 36.72
A48: Comments : | L48: Dec | M48: 63.03 | N48: 27.21 | O48: 352.46 | P48: 26.85 | Q48: 33.58
A49: Environment Agency explanatory note: The 10-minute average ELV is based on the “95th percentile”. In this case this means that 95% of the 10 minute averages in the relevant 24-hour period (i.e. 137) must be below 150 mg/Nm3, and 5% (i.e. 7) are allowed to be any value above 150 mg/Nm3. Whilst we expect operators to minimise CO emissions at all times, it is perfectly acceptable for the value of the maximum 10-minute average to be above 150 mg/Nm3, provided the 95th percentile ELV has been met for that period. | L49: Annual | M49: =MAX(M37:M48) -> 89.97 | N49: =AVERAGE(N37:N48) -> 14.67 | O49: =MAX(O37:O48) -> 706.2 | P49: =AVERAGE(P37:P48) -> 14.61583333 | Q49: =MAX(Q37:Q48) -> 36.72
K51: =+A6 -> 2021 | L51: mg/Nm3 | M51: 95%ile 10-min avg maximum | N51: Monthly CO 10-min avg mean | O51: 10-min avg maximum | P51: Monthly daily mean | Q51: Monthly daily maximum
K52: A4 | L52: Jan
C53: 2022-01-31 | L53: Feb
L54: Mar
L55: Apr
L56: May
L57: Jun
L58: Jul
L59: Aug
L60: Sep
L61: Oct
L62: Nov
L63: Dec
L64: Annual | M64: =AVERAGE(M52:M63) ->  | O64: =MAX(O52:O63) -> 0 | P64: =AVERAGE(P52:P63) ->  | Q64: =MAX(Q52:Q63) -> 0
K66: =+A6 -> 2021 | L66: mg/Nm3 | M66: 95%ile 10-min avg maximum | N66: Monthly CO 10-min avg mean | O66: 10-min avg maximum | P66: Monthly daily mean | Q66: Monthly daily maximum
K67: A5 | L67: Jan
L68: Feb
L69: Mar
L70: Apr
L71: May
L72: Jun
L73: Jul
L74: Aug
L75: Sep
L76: Oct
L77: Nov
L78: Dec
L79: Annual | M79: =AVERAGE(M67:M78) ->  | O79: =MAX(O67:O78) -> 0 | P79: =AVERAGE(P67:P78) ->  | Q79: =MAX(Q67:Q78) -> 0

Sheet NH3
A1: =+'Cover Page'!$B$29 -> Annual Performance Report 2022 | E1: =+'Cover Page'!$B$33 -> The Coventry And Solihull Waste Disposal Company Ltd
A3: Monitoring of Ammnonia emissions | D3: Whole Installation | G3: See Notes in Cell Q3 | J3: =+A3 -> Monitoring of Ammnonia emissions | N3: Per Combustion Line | Q3: Notes:
Q4: User to add logic to complete Whole installation, Table A5:G18. From the data in Per Combustion Line, Table J6:O79, subject to No. of lines installed
A5: mg/Nm3 | B5: 1/2 Hourly Reference Periods | E5: Daily Reference Periods
A6: =+'Cover Page'!C39 -> 2021 | B6: 1/2 hourly NH3 ELV | C6: Monthly 1/2 hourly mean | D6: Highest 1/2 hourly maximum | E6: Daily NH3 ELV | F6: Monthly daily mean | G6: Highest daily maximum | J6: =+A6 -> 2021 | K6: mg/Nm3 | L6: Monthly 1/2 hourly mean | M6: Monthly 1/2 hourly maximum | N6: Monthly daily mean | O6: Monthly daily maximum
A7: Jan | C7: 3.48 | D7: 31.96 | F7: 3.42 | G7: 12.6 | J7: A1 | K7: Jan | L7: 2.66 | M7: 21.26 | N7: 2.66 | O7: 6.27
A8: Feb | C8: 2.95 | D8: 17.57 | F8: 2.98 | G8: 10.54 | K8: Feb | L8: 0.51 | M8: 4.19 | N8: 0.52 | O8: 1.51
A9: Mar | C9: 1.06 | D9: 10.31 | F9: 1.09 | G9: 5.34 | K9: Mar | L9: 0.85 | M9: 2.62 | N9: 0.85 | O9: 0.98 | Q9: Whole Installation table A5:G18:
A10: Apr | C10: 0.94 | D10: 18.75 | F10: 0.85 | G10: 4.79 | K10: Apr | L10: 1.03 | M10: 5.62 | N10: 1.04 | O10: 3.36 | Q10: Mean: for 1/2 hourly and daily periods calculate mean of values across all operational combustion lines for the month
A11: May | C11: 1.71 | D11: 9.83 | F11: 1.74 | G11: 6.22 | K11: May | L11: 0.4 | M11: 4.92 | N11: 0.4 | O11: 1.6
A12: Jun | C12: 1.9 | D12: 14.48 | F12: 1.94 | G12: 8.14 | K12: Jun | L12: 0.47 | M12: 2.55 | N12: 0.47 | O12: 0.95
A13: Jul | C13: 2.91 | D13: 15.92 | F13: 2.89 | G13: 8.4 | K13: Jul | L13: 1.51 | M13: 15.92 | N13: 1.51 | O13: 2.68 | Q13: Maximum: for 1/2 hourly and daily periods use the highest value across all operational combustion lines for the month
A14: Aug | C14: 5.45 | D14: 23.36 | F14: 5.42 | G14: 11.39 | K14: Aug | L14: 6.88 | M14: 23.36 | N14: 6.82 | O14: 11.39
A15: Sep | C15: 6.38 | D15: 25.12 | F15: 6.36 | G15: 10.99 | K15: Sep | L15: 8.7 | M15: 25.12 | N15: 8.71 | O15: 10.99
A16: Oct | C16: 4.89 | D16: 23.4 | F16: 4.94 | G16: 14.47 | K16: Oct | L16: 8.35 | M16: 23.4 | N16: 8.92 | O16: 14.47
A17: Nov | C17: 6.55 | D17: 29.19 | F17: 6.58 | G17: 19.57 | K17: Nov | L17: 11.85 | M17: 29.19 | N17: 11.86 | O17: 19.57
A18: Dec | C18: 9.62 | D18: 32.26 | F18: 9.64 | G18: 18.09 | K18: Dec | L18: 11.59 | M18: 24.4 | N18: 11.73 | O18: 14.24
K19: Annual | L19: =AVERAGE(L7:L18) -> 4.566666667 | M19: =MAX(M7:M18) -> 29.19 | N19: =AVERAGE(N7:N18) -> 4.624166667 | O19: =MAX(O7:O18) -> 19.57
J21: =+A6 -> 2021 | K21: mg/Nm3 | L21: Monthly 1/2 hourly mean | M21: Monthly 1/2 hourly maximum | N21: Monthly daily mean | O21: Monthly daily maximum
J22: A2 | K22: Jan | L22: 7.49 | M22: 31.96 | N22: 7.49 | O22: 12.6
K23: Feb | L23: 6.06 | M23: 14.21 | N23: 6.06 | O23: 9.29
K24: Mar | L24: 3.47 | M24: 10.31 | N24: 3.5 | O24: 5.34
K25: Apr | L25: 2.8 | M25: 10.01 | N25: 2.72 | O25: 4.79
K26: May | L26: 3.43 | M26: 9.83 | N26: 3.43 | O26: 6.22
K27: Jun | L27: 3.54 | M27: 14.48 | N27: 3.54 | O27: 8.14
K28: Jul | L28: 2.95 | M28: 12.92 | N28: 2.88 | O28: 4.12
B29: Annual Performance Report 2022 | K29: Aug | L29: 5.51 | M29: 17.37 | N29: 5.51 | O29: 10.13
K30: Sep | L30: 4.29 | M30: 10.11 | N30: 4.34 | O30: 6.23
K31: Oct | L31: 3.43 | M31: 10.31 | N31: 3.49 | O31: 5.43
K32: Nov | L32: 3.53 | M32: 12.63 | N32: 3.53 | O32: 7.91
K33: Dec | L33: 10.93 | M33: 32.26 | N33: 10.92 | O33: 18.09
K34: Annual | L34: =AVERAGE(L22:L33) -> 4.785833333 | M34: =MAX(M22:M33) -> 32.26 | N34: =AVERAGE(N22:N33) -> 4.784166667 | O34: =MAX(O22:O33) -> 18.09
J36: =+A6 -> 2021 | K36: mg/Nm3 | L36: Monthly 1/2 hourly mean | M36: Monthly 1/2 hourly maximum | N36: Monthly daily mean | O36: Monthly daily maximum
J37: A3 | K37: Jan | L37: 1.37 | M37: 14.81 | N37: 1.39 | O37: 4.29
K38: Feb | L38: 2.25 | M38: 17.57 | N38: 2.36 | O38: 10.54
C39: 2021 | K39: Mar | L39: -0.34 | M39: 6.05 | N39: -0.36 | O39: 2.16
K40: Apr | L40: -0.43 | M40: 18.75 | N40: -0.43 | O40: 0.84
K41: May | L41: 1.16 | M41: 9.79 | N41: 1.23 | O41: 5.2
K42: Jun | L42: 2.3 | M42: 11.66 | N42: 2.35 | O42: 5.36
K43: Jul | L43: 4.19 | M43: 15.8 | N43: 4.19 | O43: 8.4
K44: Aug | L44: 3.97 | M44: 16.44 | N44: 3.97 | O44: 6.45
K45: Sep | L45: 6 | M45: 23.68 | N45: 6.04 | O45: 10.02
K46: Oct | L46: 4.83 | M46: 14.25 | N46: 4.81 | O46: 5.76
K47: Nov | L47: 3.93 | M47: 13.3 | N47: 3.92 | O47: 5.49
A48: Comments : | K48: Dec | L48: 2.18 | M48: 11.88 | N48: 2.18 | O48: 3.51
A49: An indicated ELV value of zero in the table above means that no ammonia limit is set in the permit. | K49: Annual | L49: =AVERAGE(L37:L48) -> 2.6175 | M49: =MAX(M37:M48) -> 23.68 | N49: =AVERAGE(N37:N48) -> 2.6375 | O49: =MAX(O37:O48) -> 10.54
J51: =+A6 -> 2021 | K51: mg/Nm3 | L51: Monthly 1/2 hourly mean | M51: Monthly 1/2 hourly maximum | N51: Monthly daily mean | O51: Monthly daily maximum
J52: A4 | K52: Jan
C53: 2022-01-31 | K53: Feb
K54: Mar
K55: Apr
K56: May
K57: Jun
K58: Jul
K59: Aug
K60: Sep
K61: Oct
K62: Nov
K63: Dec
K64: Annual | L64: =AVERAGE(L52:L63) ->  | M64: =MAX(M52:M63) -> 0 | N64: =AVERAGE(N52:N63) ->  | O64: =MAX(O52:O63) -> 0
J66: =+A6 -> 2021 | K66: mg/Nm3 | L66: Monthly 1/2 hourly mean | M66: Monthly 1/2 hourly maximum | N66: Monthly daily mean | O66: Monthly daily maximum
J67: A5 | K67: Jan
K68: Feb
K69: Mar
K70: Apr
K71: May
K72: Jun
K73: Jul
K74: Aug
K75: Sep
K76: Oct
K77: Nov
K78: Dec
K79: Annual | L79: =AVERAGE(L67:L78) ->  | M79: =MAX(M67:M78) -> 0 | N79: =AVERAGE(N67:N78) ->  | O79: =MAX(O67:O78) -> 0
